{"text_format":"1","workbook":"xlsx","n_sheets":1,"sheets":["CAVOM DEFINITIF V1"],"not_rendered":{"charts":0,"images":1,"macros":0,"external_links":0,"defined_names":1,"comments":0,"pivot_tables":0},"unopened":[],"bounds":{"document_bytes":16777216,"sheet_cells":100000,"rows_first":2000,"rows_last":500,"rows_between":2000,"halvings":0,"cell_chars":16384,"cell_head_chars":4096},"cells_cut":0,"cells_raw":0,"read":"whole","date_system":"1900"}

{"sheet":"CAVOM DEFINITIF V1","index":0,"n_rows":204,"n_cols":5470,"rows_kept":204,"cut":false,"hidden":false,"merged":[[71,13,71,20],[72,12,72,20],[73,12,73,20],[76,12,76,21],[77,12,77,21],[78,12,78,20],[67,12,67,13],[67,16,67,20],[68,12,68,20],[69,12,69,20],[70,12,70,20],[70,64,70,67],[64,12,64,13],[64,16,64,20],[65,12,65,13],[65,16,65,20],[65,66,65,69],[66,12,66,13],[66,16,66,20],[66,64,66,67],[59,33,59,34],[61,12,61,20],[62,12,62,14],[62,16,62,21],[63,12,63,13],[63,16,63,20],[52,12,52,19],[52,20,52,21],[54,12,54,16],[55,12,55,16],[57,12,57,16],[59,12,59,20],[48,12,48,16],[48,38,48,42],[49,12,49,16],[50,12,50,16],[50,46,50,48],[51,12,51,16],[41,16,41,20],[42,16,42,20],[43,12,43,13],[43,16,43,20],[45,12,45,20],[47,12,47,21],[36,53,36,55],[37,12,37,21],[37,46,37,49],[39,12,39,14],[39,16,39,21],[40,16,40,20],[33,12,33,20],[34,53,34,55],[35,12,35,19],[35,20,35,21],[35,53,35,55],[25,12,25,20],[27,12,27,20],[28,53,28,55],[29,12,29,19],[29,20,29,21],[31,12,31,21],[17,12,17,13],[17,16,17,20],[18,99,18,101],[21,12,21,20],[23,12,23,21],[9,12,11,12],[9,13,11,14],[9,16,11,20],[9,21,11,21],[13,12,13,21],[15,12,16,13],[15,14,16,14],[15,16,15,20],[16,16,16,17],[16,19,16,20],[0,0,0,5],[0,23,0,27],[5,12,8,12],[5,13,8,14],[5,16,5,20],[6,16,6,21],[7,16,7,21],[8,16,8,21]]}
["Partie de dnnées identiques pour tous les cotisants à la CNAVPL",null,null,null,null,null,null,null,null,null,null,null,null,null,null,null,null,null,null,null,null,null,null,"Données spécifiques par métier"]
[null,null,null,null,null,null,null,null,null,null,null,null,null,null,null,null,null,null,null,null,null,null,null,null,null,null,null,null,null,null,null,"Plafond SS",{"$f":"O18","v":41136},"TAUX COTISATION","revenu","COTISATION",{"$f":"IF(AND(AI3>AH6,AI3<=AG4),AI3*AH3,IF(AI3>AG4,AG4*AH3,IF(AI3<AH6,AI6,\" \")))","v":9000},null,null,null,null,null,null,null,null,null,null,null,null,null,null,null,null,null,null,null,null,null,null,null,null,null,null,null,null,null,null,null,{"$f":"AJ67","v":0}]
[null,"Revenu","COTISATION MAXI 1PASS",{"$f":"B6*B8","v":10411.5216},"COTISATIONS Plafonnées MAXI créatrice de froits",{"$f":"D3+D4","v":18745.675199999998},null,null,null,null,null,null,null,null,null,null,null,null,null,null,null,null,null,"C.A.V.O.M","Officier ministériel",null,"PLAFOND","COTISATION MAXI 1 PASS",null,null,null,"Nbre Plafond complémentaire",8,0.125,{"$f":"+V10","v":72000},"Nombre de points ACQUIS",{"$f":"IF(AND(AI3>AH6,AI3<=AG4),(AK2/AI4),IF(AI3>AG4,AK6,IF(AI3<AH6,AG6,\" \")))","v":192.59576289321637},null,null,null,null,null,null,null,null,null,null,null,null,null,null,null,null,null,null,null,null,null,null,null,null,null,null,null,null,null,null," Pour réaliser une simulation de vos droits et  évaluer l'impact de la réforme en cours, tendant à créer un Régime Universel et à supprimer les regimes existants, renseignez dans les case bleues, ci-dessous, les 2 données indispensables à une simulation.       Tous droits réservés à la Chambre Nationale de Professions Libérales"]
[null,{"$f":"+V10","v":72000},"COTISATION MAXI 3PASS",{"$f":"(C6-B6)*C8","v":8334.1535999999996},"BASE DE COTISATION ENTRE 1 et 3 plafonds",{"$f":"C6-B6","v":82272},null,null,null,null,null,null,null,null,null,null,null,null,null,null,null,null,null,null,null,null,null,null,null,null,null,"Plafond complémentaire",{"$f":"AG2*AG3","v":329088},"val achat du point",46.73,"Valeur de service du point",2.86]
[null,"1 PLAFOND","3 PLAFONDS",null,null,null,null,null,null,null,null,null,null,null,null,null,null,null,null,null,null,null,null,null,null,null,null,null,null,null,null,"Calcul plancher cotis 19% PLF",0.19,"PLANCHER COTISATION","COTISATION MINI","COTISATION MAXI",{"$f":"+AG4*AH3","v":41136}]
[null,{"$f":"+O18","v":41136},{"$f":"+V18","v":123408},null,"COTISATIONS Plafonnées MAXI créatrice de droits",{"$f":"SUM(C4:D4)","v":8334.1535999999996},null,null,null,null,null,null,1,"Les réformes successives ont allongé les durées légales  de cotisation. Celles-ci sont calculées en fonction de l'âge du cotisant faisant liquider sa retraite. Elle induit la Durée de carrière dans tous les régimes,exprimée en trimestres, exigée pour obtenir le taux plein.Pour personnaliser le calcul validez votre date de naissance au moyen de la liste déroulante ci-contre. Il sera alors indiqué, la durée de cotisation dans tous les régimes exprimée en trimestres et en années.",null,null,"Renseignez au moyen des flmèches ci-contre, votre année de naissance, afin de connaitre le nombre nécessaire de trimestres d'affiliation pour une retraite à taux plein (par défaut 168 trimestres).",null,null,null,null,null,null,null,null,null,null,null,null,null,null,"POINTS MINI",{"$f":"AI6/AI4","v":20.906912047934949},{"$f":"AG2*AG5","v":7815.84},{"$f":"+AH6*AH3","v":976.98},"points maxi",{"$f":"+AK5/AI4","v":880.29103359726093},null,null,null,null,null,null,null,null,null,null,null,null,null,null,null,null,null,null,null,null,null,null,null,null,null,null,null,null,null,"(*) ( Le système universel tend à supprimer les régimes complémtentaires (Agirc-ARCO pour les salariés, caisses complémentaires des Professions Libérales…) Ainsi la comparaison entre les situations actuelles et les situations envisagées par la réforme doivent nécessairement prendre en  compte les régimes actuels de  base et complémentaire."]
[null,"Taux de cotisation entre 1 & 3 Plafond","Taux de cotisation 1er Plafond","Taux de cotisation déplafonné NON CREATRICE DE DROITS",null,"TAUX DE COTISATION REEL",null,null,null,null,null,null,null,null,null,null,{"$f":"B32","v":"Année de naissance : 1964 - 1965 ou 1966"},null,null,null,null,null,null,null,null,null,null,null,null,null,null,null,null,null,null,null,null,null,null,null,null,null,null,null,null,null,null,null,null,null,null,null,null,null,null,null,null,null,null,null,null,null,null,null,null,null,"(**) Le projet de régime universel prévoit une pension minimum pour les carrières complètes de 85% du SMIC, ainsi toutes les pension inférieures à ce montant sernt réajustées automtiquement à la condition que la carrière ait été complète. "]
[null,0.25309999999999999,0.1013,2.81E-2,null,{"$f":"+F10/B4","v":0.2161284},null,null,null,null,null,null,null,null,null,null,"Durée de cotisations tous régimes éxigée :"]
[null,"COTISATION 1er plafond","COTISATION 2eME plafond","COTISATION Non créatrice DE DROITS","cotisation créatrice de droits","cotis totale",null,null,null,null,null,null,null,null,null,null,{"$f":"D26","v":"169 TRIMESTRES soit : 42 ans et un trimestre"},null,null,null,null,null,null,"Renseignez la case \"revenus\" qui permettra, à revenu égal, de compararer les cotisations et prestations à la ","et au Régime Universel tel que proposé"]
[null,{"$f":"IF(B$4<=B$6,(B$4*B$8),IF(AND(B$4>B$6,B$4<=C$6),(B6*B8),IF(B4>C6,(B6*B8),\" \")))","v":10411.5216},{"$f":"IF(AND(B$4>B$6,B$4<=C$6),(B4-B6)*C8,IF(B$4>C$6,((C6-B6)*C8),0))","v":3126.5232000000001},{"$f":"B4*D8","v":2023.2},{"$f":"+B10+C10","v":13538.0448},{"$f":"E10+D10","v":15561.2448},null,null,null,null,null,null,2,{"$f":"X10","v":"Renseignez la case \"revenus\" qui permettra, à revenu égal, de compararer les cotisations et prestations à la  C.A.V.O.M et au Régime Universel tel que proposé"},null,null,"Entrez vos revenus nets servant d'assiette aux cotisations : en renseignant la case ci-contre,",null,null,null,null,72000,null,{"$f":"X9&\" \"&X3&\" \"&Y9","v":"Renseignez la case \"revenus\" qui permettra, à revenu égal, de compararer les cotisations et prestations à la  C.A.V.O.M et au Régime Universel tel que proposé"}]
[]
[]
[null,"Pension obtenue pour ","de cotisation",{"$f":"E28","v":"42 ans et un trimestre"},{"$f":"B13&\" \"&D13&\" \"&C13","v":"Pension obtenue pour  42 ans et un trimestre de cotisation"}]
[null,null,"  tranche 2 : de zéro jusqu’à "," € (5 PASS)","  tranche 2 : de zéro jusqu’à 202 620 € (5 PASS)","Cotisation maxi T1",null,null,null,null,null,null,"Données générales"]
[null,"PLAFOND","5 Plafonds","3,5 PLAFONDS","REVENU"]
[null,{"$f":"B6","v":41136},{"$f":"B16*5","v":205680},{"$f":"+B16*3.5","v":143976},{"$f":"+V10","v":72000},{"$f":"B16*E18","v":3385.4928},null,null,null,null,null,null,"Durée de carrière exigée pour bénéficier d'une pension à taux plein, exprimée en années (en années pleines et trimestres) en fonction de votre date de naissance.",null,{"$f":"+E28","v":"42 ans et un trimestre"},null,{"$f":"X16","v":"Plafond de votre retaite de base actuelle: 5 Plafonds de la sécurité sociale ( PASS) soit 41136 €uros multiplié par 5  :"},null,null,null,null,{"$f":"O18*5","v":205680},null,{"$f":"Y16&\" \"&B6&\" \"&AA16&\" \"&Z16","v":"Plafond de votre retaite de base actuelle: 5 Plafonds de la sécurité sociale ( PASS) soit 41136 €uros multiplié par 5  :"},"Plafond de votre retaite de base actuelle: 5 Plafonds de la sécurité sociale ( PASS) soit","multiplié par 5  :","€uros",null,null,null,null,null,null,null,null,null,null,null,null,null,null,null,null,null,null,null,null,null,null,null,null,null,null,null,null,null,null,null,null,null,null,null,132780]
[null," COTISATIONS RÉGIME DE BASE",null,null,null,"POINTS ",null,"PLAFOND",null,null,null,null,null,null,null,null,{"$f":"D22","v":"Cotisation tranche 1  jusqu’à  1 PASS"},null,{"$f":"E18","v":"8,23 %"},{"$f":"E22","v":"  Cotisation tranche 2 : de zéro jusqu’à 5 PASS"},null,{"$f":"+E19","v":1.8700000000000001E-2},null,null,"Plafond de cotisation au régime Universel tel que proposé 3 Plafonds de la sécurité sociale (",null,null,null,null,null,null,null,null,null,null,null,null,null,null,null,null,null,null,null,null,null,null,null,null,null,null,null,null,null,null,null,null,null,null,null,null,1000,1000,null,null,null,null,null,null,null,null,null,null,null,null,null,null,null,null,null,null,null,null,null,null,null,null,null,null,null,null,null,null,null,null,null,null,null,null,"P.A.S.S. =",null,"Valeur du plafond de la Sécurité Sociale  en revenu annuel"]
[null,"COTISATION  TRANCHE 1",{"$f":"IF(E16<=B16,E16*E18,IF(E16>B16,F16,\" \"))","v":3385.4928},"tranche 1 : jusqu’à 41 136 € (1 PASS) (3)","8,23 %",{"$f":"C16/H19","v":8227.2000000000007},"525 points pour 40 524 € de revenus",525,null,null,null,null,"Valeur de 1 plafond de la Sécurité Sociale",null,41136,null,"Valeur de 3 plafonds de la Sécurité Sociale (plafond du second niveau de cotisation au système universel)",null,null,null,null,{"$f":"O18*3","v":123408},null,null,null,null,null,null,null,null,null,null,null,null,null,null,null,null,null,null,null,null,null,null,null,null,null,null,null,null,null,null,null,null,null,null,null,null,null,null,null,450000,{"$f":"+BK16/BK17","v":132.78}]
[null,"COTISATION  TRANCHE 2",{"$f":"IF(E16<=C16,E16*E19,IF(E16>C16,C16*E19,\" \"))","v":1346.4},{"$f":"C14&\" \"&C16&\" \"&D14","v":"  tranche 2 : de zéro jusqu’à  205680  € (5 PASS)"},1.8700000000000001E-2,{"$f":"B16/H18","v":78.354285714285709},"+ 1 point par tranche de revenu de 8 104,80 € = 25 points maximum",25,null,null,null,null,null,null,null,null,null,null,null,null,null,null,null,null,null,null,null,null,null,null,null,null,null,null,null,null,null,null,null,null,null,null,null,null,null,null,null,null,null,null,null,null,null,null,null,null,null,null,null,null,null,null,{"$f":"+BK18*1000","v":132780},null,null,null,null,null,null,null,null,null,null,null,null,null,null,null,null,null,null,null,null,null,null,null,null,null,null,null,null,null,null,null,null,null,null,null,null,"Plafond de la retraite de base de la CNAVPL = 5 P.A.S.S.soit :",null,null,40524,"x"]
[null,"TOTAL cotisation BASE",{"$f":"SUM(C18:C19)","v":4731.8927999999996},"PENSION POUR carrière complete",{"$f":"+E21*42.75","v":13024.442966744456},"POINTS Première tranche","POINTS seconde tranche","Nombre  total de points acquis dans l'année:",null,null,null,null,null,null,null,null,null,null,null,null,null,null,null,null,null,null,null,null,null,null,null,null,null,null,null,null,null,null,null,null,null,null,null,null,null,null,null,null,null,null,null,null,null,null,null,null,null,null,null,null,null,13,{"$f":"+BJ20*1000","v":13000}]
[null,"Valeur de service du point",0.57079999999999997,"Calcul de la pension pour une année",{"$f":"C21*H21","v":304.66533255542589},{"$f":"IF(E16<=B16,E16/F19,IF(E16>B16,H18,\" \"))","v":525},{"$f":"IF(E16<=C16,E16/F18,IF(E16>C16,H19,\" \"))","v":8.7514585764294033},{"$f":"+F21+G21","v":533.7514585764294},null,null,null,null,null,null,null,null,null,null,null,null,null,null,null,null,null,null,null,null,null,null,null,null,null,null,null,null,null,null,null,null,null,null,null,null,null,null,null,null,null,null,null,null,null,null,null,null,null,null,null,null,null,null,{"$f":"+BJ21*1000","v":0}]
[null,{"$f":"P22","v":0},null,"Cotisation tranche 1  jusqu’à  1 PASS","  Cotisation tranche 2 : de zéro jusqu’à 5 PASS",null,null,null,null,null,null,null,{"$f":"+X22","v":"Données concernant la  C.A.V.O.M"},null,null,null,null,null,null,null,null,null,null,{"$f":"Y22&\" \"&X3","v":"Données concernant la  C.A.V.O.M"},"Données concernant la ",null,null,null,null,null,null,null,null,null,null,null,null,null,null,null,null,null,null,null,null,null,null,null,null,null,null,null,null,null,null,null,null,null,null,null,null,30,30000,null,null,null,null,null,null,null,null,null,null,null,null,null,null,null,null,null,null,null,null,null,null,null,null,null,null,null,null,null,null,{"$f":"#REF!*#REF!","v":{"$error":"#REF!"}}]
[null,null,null,"tranche 1 : jusqu’à 41 136 € (1 PASS) (3)",null,null,null,null,null,null,null,null,null,null,null,null,null,null,null,null,null,null,null,null,null,null,null,null,null,null,null,null,null,null,null,null,null,null,null,null,null,"La pension du régime de retraite complémentaire est calculée ainsi :"]
[null,null,null,null,null,null,null,null,null,null,null,null," Retraite de Base (Cotisation)"]
[null,null,null,null,null,null,null,null,null,null,null,null,null,null,null,null,null,null,null,null,null,null,null,null,null,null,null,null,null,null,null,null,null,null,null,null,null,null,null,null,null,null,null,null,null,null,null,null,null,null,null,null,null,null,null,null,null,null,null,null,null,null,null,null,null,null,null,null,null,null,null,null,null,null,null,null,null,null,null,null,null,null,null,null,null,null,null,null,null,null,null,null,null,{"$f":"IF(CJ6<=#REF!,\"-\",IF(CJ6>#REF!,(#REF!*#REF!),\" \"))","v":{"$error":"#REF!"}}]
[null,"TRIMESTRES","Durée de cotisations tous régimes éxigée ",{"$f":"D28&\" \"&B26&\" \"&E26&\" \"&E28","v":"169 TRIMESTRES soit : 42 ans et un trimestre"},"soit :",null,null,null,null,null,null,null,{"$f":"X26&\" \"&Y26","v":"Cotisation Tranche 1 du Premier €uro de revenu jusqu'à 1 PASS : 8,23% soit"},null,null,null,null,null,null,null,null,{"$f":"+C18","v":3385.4928},null,"Cotisation Tranche 1","du Premier €uro de revenu jusqu'à 1 PASS : 8,23% soit"]
[null,{"$f":"+D27","v":"Durée de cotisations tous régimes éxigée  169 TRIMESTRES soit : 42 ans et un trimestre"},null,{"$f":"C26&\" \"&H31&\" \"&B26&\" \"&E26&\" \"&C32","v":"Durée de cotisations tous régimes éxigée  169 TRIMESTRES soit : 42 ans et un trimestre"},null,null,null,null,null,null,null,null,null,null,null,null,null,null,null,null,null,null,null,null,null,null,null,null,null,null,null,null,null,null,null,null,null,null,null,null,null,"cotisation au régime prévoyance"]
[null,"Durée de cotisations tous régimes éxigée :",null,{"$f":"IF(H31>0,H31,IF(H31=0,B27,\" \"))","v":169},{"$f":"IF(D28=160,D32,IF(D28=161,D33,IF(D28=162,D34,IF(D28=163,D35,IF(D28=164,D36,IF(D28=165,D37,IF(D28=166,D38,IF(D28=167,D40,IF(D28=168,D42,IF(D28=169,D43,IF(D28=170,D44,IF(D28=171,D45,IF(D28=172,D46,\" \")))))))))))))","v":"42 ans et un trimestre"},{"$f":"+D28/4","v":42.25},null,null,null,null,null,null,{"$f":"IF(V10<=V16,X28,IF(V10>V16,Y28,\" \"))","v":"Cotisation tranche 2 : 1,87%, depuis le premier €uros jusqu' au revenu net ( 72000 euros)"},null,null,null,null,null,null,null,null,{"$f":"+C19","v":1346.4},null,{"$f":"Z28&\" \"&V10&\" \"&AA28","v":"Cotisation tranche 2 : 1,87%, depuis le premier €uros jusqu' au revenu net ( 72000 euros)"},"Cotisation Tranche 2  à 1,87%, du premier €uros jusqu' au revenu net dans la limite de 5 pass :","Cotisation tranche 2 : 1,87%, depuis le premier €uros jusqu' au revenu net (","euros)",null,null,null,null,null,null,null,null,null,null,null,null,null,null,null,null,null,null,null,null,null,null,null,null,null,null,null,null,null,null,null,null,null,null,null,null,null,null,null,null,null,null,null,"Données concernant le projet de Régime Universel"]
[1948,"CALCULS SUR LA DUREE DE COTISATION",null,null,null,null,null,null,null,null,null,null,null,null,null,null,null,null,null,null,null,null,null,null,null,null,null,null,null,null,null,null,null,null,null,null,null,null,null,null,null,null,null,null,null,null,null,null,null,null,null,null,null,"Vous cotisez dans l’une des 4 classes correspondant à votre revenu professionnel de l’année N-1, ou vous pouvez opter pour la classe immédiatement supérieure et ainsi être mieux couvert.",null,null,null,null,null,null,null,null,null,null,null,null,null,null,null,null,"Taux de cotisation plafonnée entre 0 et 1 plafond ( 40.524€)"]
[1949,11,null,null,null,null,null,null,null,null,null,null,"Cotisation à la  retraite de  base :",null,null,null,null,null,null,null,{"$f":"V26+V28","v":4731.8927999999996},null,null,null,null,null,null,null,null,null,null,null,null,null,null,null,null,null,null,null,null,null,null,null,null,null,null,null,null,null,null,null,null,"CLASSES","REVENUS PROFESSIONNELS NETS NON SALARIES 2018","MONTANT DE LA COTISATION 2019",null,null,null,null,null,null,null,null,null,null,null,null,null,null,"Taux de cotisation déplafonnée"]
[1950,7,null,"42 ans",null,"Par défaut 168 Trimestres",null,{"$f":"IF(B30=1,BI99,IF(B30=2,BI100,IF(B30=3,BI101,IF(B30=4,BI102,IF(B30=5,BI103,IF(B30=6,BI104,IF(B30=7,BI105,IF(B30=8,BI106,IF(B30=9,BI107,IF(B30=10,BI108,IF(B30=11,BI109,IF(B30=12,BI110,IF(B30=13,BI111,IF(B30=14,BI112,IF(B30=15,BI99,\" \")))))))))))))))","v":169},null,null,null,null,null,null,null,null,null,null,null,null,null,null,null,null,null,null,null,null,null,null,null,null,null,null,null,null,null,null,null,null,null,null,null,null,null,null,null,null,null,null,null,null,null,1,"jusqu’à : 16 190 €",288,null,null,null,null,null,null,null,null,null,null,null,null,null,null,"Taux de cotisation plafonnée (entre 1 et 3 plafonds 121.572 €)"]
[1951,{"$f":"IF(B30=1,F31,IF(B30=2,F32,IF(B30=3,F33,IF(B30=4,F34,IF(B30=5,F35,IF(B30=6,F36,IF(B30=7,F37,IF(B30=8,F38,IF(B30=9,F40,IF(B30=10,F42,IF(B30=11,F43,IF(B30=12,F44,IF(B30=13,F45,IF(B30=14,F46,IF(B30=15,F47,\" \")))))))))))))))","v":"Année de naissance : 1964 - 1965 ou 1966"},{"$f":"IF(B30=1,D31,IF(B30=2,D32,IF(B30=3,D33,IF(B30=4,D34,IF(B30=5,D35,IF(B30=6,D36,IF(B30=7,D37,IF(B30=8,D38,IF(B30=9,D40,IF(B30=10,D42,IF(B30=11,D43,IF(B30=12,D44,IF(B30=13,D45,IF(B30=14,D46,IF(B30=15,D47,\" \")))))))))))))))","v":"42 ans et un trimestre"},"40 ans","1948 ou avant : 160 trimestres (40 ans)","Année de naissance: 1948 ou avant",null,"160 trimestres (40 ans)",null,null,null,null,"Retraite Complémentaire (*)",null,null,null,null,null,null,null,null,null,null,"Zone de calcul retraite complémentaire",null,{"$f":"IF(AND(Y35>0,Y35<=16190),AH41,IF(AND(Y35>=16191,Y35<=32350),AH42,IF(AND(Y35>=32351,Y35<=44790),AH43,IF(AND(Y35>44790,Y35<=64560),AH44,IF(AND(Y35>64560,Y35<=79040),AH45,IF(AND(Y35>79040,Y35<=94850),AH46,IF(AND(Y35>94850,Y35<=132780),AH47,IF(Y35>132780,AH48,\" \"))))))))","v":"E"},{"$f":"+Z32","v":"E"},{"$f":"+AA32","v":"E"},"A","E","A","G",null,null,null,null,null,null,null,null,null,null,null,null,null,null,null,null,null,null,null,null,null,2,"jusqu’à : 44 790 €",396,null,null,null,null,null,null,null,null,null,null,null,null,"€uros ).",null,"Valeur annoncée du point"]
[1952,null,null,"40 ans et un trimestre","1949 : 161 trimestres (40 ans et un trimestre)","Année de naissance : 1949",null,"161 trimestres (40 ans et un trimestre)",null,null,null,null,null,null,null,null,null,null,null,null,null,null,null,"Le revenu net génère une cotisation de ","de la grille de la ","CLASSE","COTISATION","Points ","B","F","B","H",null,null,"O,5708",null,null,"Nombre de points acquis à la Cavec  x  Valeur annuelle du point du régime de base, fixée à 0,5708 € au 1er janvier 2020 = montant annuel de la retraite de base",null,null,null,null,null,null,null,null,null,null,null,null,null,null,null,3,"jusqu’à : 79 040 €",612]
["1953-1954",null,null,"40 ans et deux trimestres","1950  : 162 trimestres (40 ans et deux trimestres)","Année de naissance : 1950",null,"162 trimestres (40 ans et deux trimestres)",null,null,null,null,{"$f":"X33","v":"Le revenu net génère une cotisation de "},null,null,null,null,null,null,null,null,{"$f":"AK2","v":9000},null,{"$f":"X33&\" \"&Z34&\" \"&Y33&\" \"&X3&\" \"&Y34","v":"Le revenu net génère une cotisation de  E de la grille de la  C.A.V.O.M soit :"},"soit :",{"$f":"IF(Z32=AC32,Z32,IF(Z32=AC33,Z32,IF(Z32=AC34,Z32,IF(Z32=AC35,Z32,IF(Z32=AD32,Z32,IF(Z32=AD33,Z32,IF(Z32=AD34,Z32,IF(Z32=AD35,Z32,\" \"))))))))","v":"E"},{"$f":"IF(AA32=AC32,AJ41,IF(AA32=AC33,AJ42,IF(AA32=AC34,AJ43,IF(AA32=AC35,AJ44,IF(AA32=AD32,AJ45,IF(AA32=AD33,AJ46,IF(AA32=AD34,AJ47,IF(AA32=AD35,AJ48,\" \"))))))))","v":9558},{"$f":"IF(AB32=AE32,AK41,IF(AB32=AE33,AK42,IF(AB32=AE34,AK43,IF(AB32=AE35,AK44,IF(AB32=AF34,AK45,IF(AB32=AF35,AK46,IF(AB32=AF32,AK47,IF(AB32=AF33,AK48,\" \"))))))))","v":708},"C","G","C","E",null,null,1.159,null,null,null,null,null,null,null,null,null,null,null,null,null,null,null,null,null,null,4,"au-delà de : 79 040 €",828,null,null,null,null,null,null,null,null,null,null,null,null,null,null,null,null,null,null,null,null,null,null,null,null,null,null,null,null,null,null,null,null,null,null,null,null,null,null,null,null,"Cotisation  retraite complémentaire",null,null,null,null,null,{"$f":"AA34","v":9558}]
["1955-1956-1957",null,null,"40 ans et trois trimestres","1951 : 163 trimestres (40 ans et trois trimestres)","Année de naissance : 1951",null,"163 trimestres (40 ans et trois trimestres)",null,null,null,null,null,null,null,null,null,null,null,null,null,null,null,"REVENU",{"$f":"V10","v":72000},null,null,null,"D","H","D","F",null,null,null,null,null,null,null,null,null,null,null,null,null,null,null,null,null,null,null,null,null,"Vous pouvez opter uniquement pour la classe immédiatement supérieure à celle qui correspond à votre tranche de revenus professionnels.",null,null,null,null,null,null,null,null,null,null,null,null,null,null,null,null,null,null,null,null,null,null,null,null,null,null,null,null,null,null,null,null,null,null,null,null,null,null,null,null,"COTIS RU",null,"COTIS TOTALE"]
["1958 1959-1960",null,null,"41 ans","1952 : 164 trimestres (41 ans)","Année de naissance : 1952",null,"164 trimestres (41 ans)",null,null,null,null,{"$f":"X36","v":"Cotisation totale annuelle à la C.A.V.O.M (base et complémentaire) :"},null,null,null,null,null,null,null,{"$f":"+V34+U30","v":13731.8928},null,null,{"$f":"Y36&\" \"&X3&\" \"&Z36","v":"Cotisation totale annuelle à la C.A.V.O.M (base et complémentaire) :"},"Cotisation totale annuelle à la","(base et complémentaire) :",null,null,null,null,null,null,null,null,null,null,null,null,null,null,null,null,null,null,null,null,null,null,null,null,null,null,null,null,null,null,null,null,null,null,null,null,null,null,null,null,null,null,null,null,null,null,null,null,null,null,null,null,null,null,null,null,null,null,null,null,null,null,null,null,null,null,null,null,{"$f":"+#REF!","v":{"$error":"#REF!"}},null,{"$f":"U36","v":13731.8928},"=",{"$f":"CQ36-CS36","v":{"$error":"#REF!"}}]
["1961-1962-1963 ",null,null,"41 ans et un trimestre","1953-1954 : 165 trimestres (41 ans et un trimestre)","Année de naissance : 1953 ou 1954",null,"165 trimestres (41 ans et un trimestre)",null,null,null,null,null,null,null,null,null,null,null,null,null,null,null,null,null,null,null,null,null,null,null,null,null,null,null,null,null,null,null,null,null,null,null,null,null,null,null,null,null,null,null,null,null,"La cotisation est obligatoirement due jusqu’au 31 décembre de l’année du 70e anniversaire. Si vous êtes nouvel affilié, vous pouvez cotiser dans la classe de votre choix lors de votre première et deuxième année civile d’activité. À défaut, la cotisation est appelée en classe 1.",null,null,null,null,null,null,null,null,null,null,null,null,null,null,null,null,null,null,null,null,null,null,null,null,null,null,null,null,null,null,null,null,null,null,null,null,null,null,null,null,"PRESTATION RU",null,"PRESTATION"]
["1964-1965-1966",null,null,"41 ans et deux trimestres","1955-1956-1957 : 166 trimestres (41 ans et deux trimestres)","Année de naissance : 1955 - 1956 ou 1957",null,"166 trimestres (41 ans et deux trimestres)",null,null,null,null,{"$f":"X38","v":"Prestations pour  42 ans et un trimestre de cotisations"},null,null,null,null,null,null,null,null,null,null,{"$f":"Y38&\" \"&C32&\" \"&Z38","v":"Prestations pour  42 ans et un trimestre de cotisations"},"Prestations pour ","de cotisations",null,null,null,null,null,null,null,null,null,null,null,null,null,null,null,null,null,null,null,null,"EQUATIONS SUR LE MONTANT DE LA COTISATION",null,null,null,null,null,null,null,null,null,null,null,null,null,null,null,null,null,null,null,null,null,null,null,null,null,null,null,null,null,null,null,null,null,null,null,null,null,null,null,null,null,null,null,null,null,null,null,{"$f":"+CA95","v":0},null,{"$f":"+CO63","v":0},"=",{"$f":"+CS38-CQ38","v":0}]
["1967-1968-1969",null,null,null,null,null,null,null,null,null,null,null,null,null,null,null,null,null,null,null,null,null,null,"Valeur du point CAVEC",1.1759999999999999]
["1970-1971-1972",null,null,"41 ans et trois trimestres","1958 1956-1960 :  167 trimestres (41 ans et trois trimestres)","Année de naissance : 1958 - 1959 ou 1960",null,"167 trimestres (41 ans et trois trimestres)",null,null,null,null," Prestations à la retraite de base",null,null,null,"Prestations à la retraite complémentaire",null,null,null,null,null,null,null,null,null,null,null,null,null,null,null,null,"CLASSES","REVENUS PROFESSIONNELS NETS NON SALARIES 2018","MONTANT DE LA COTISATION 2019","POINTS ATTRIBUES (valeur du point : 1,159 € en 2019)","COTISATION FACULTATIVE DE CONJOINT","CLASSES","REVENUS PROFESSIONNELS NETS NON SALARIES 2019","MONTANT DE LA COTISATION 2020","POINTS ATTRIBUES (valeur du point : 1,176 € en 2020)","COTISATION FACULTATIVE DE CONJOINT",null,null,null,{"$f":"AX40&\" \"&Y3&\" \"&AF44","v":"Augmentation de la cotisation annuelle au préjudice du cotisant Officier ministériel  :"},null,null,"Augmentation de la cotisation annuelle au préjudice du cotisant"]
["A partir de 1973",null,null,null,null,null,null,null,null,null,null,null,"Nombre de points acquis chaque année :",null,{"$f":"+H21","v":533.7514585764294},null,"Nombre de points acquis chaque année  :",null,null,null,null,{"$f":"AK3","v":192.59576289321637},null,null,"1er Janvier 2020",null,null,null,"EQUATIONS SUR LE MONTANT DE LA PENSION",null,null,null,null,"A","De 0 € à 16190€ ",648,48,192,"A","De 0 € à 16190€ ",648,48,194,null,null,null,{"$f":"AX41&\" \"&Y3&\" \"&AF44","v":"Diminution de la cotisation au bénéfice du cotisant  Officier ministériel  :"},null,"Pas d'augmentation ou de diminution de cotisation.","Diminution de la cotisation au bénéfice du cotisant "]
["Par défaut 168 Trimestres",null,null,"42 ans","1961-1962-1963 : 168 trimestres (42 ans)","Année de naissance : 1961 - 1962 ou 1963",null,"168 trimestres (42 ans)",null,null,null,null,"Nombre de points acquis durant la carrière :",null,{"$f":"+O41*F28","v":22550.999124854141},null,"Nombre de points acquis durant la carrière :",null,null,null,null,{"$f":"+V41*F28","v":8137.1709822383918},null,{"$f":"+Y42&\" \"&Y41","v":"Valeur du point depuis le  1er Janvier 2020"},"Valeur du point depuis le ",null,null,null,{"$f":"AD42&\" \"&Y3&\" \"&AF44","v":"gain de pension pour l' Officier ministériel  :"},"gain de pension pour l'",null,null,null,"B","De 16191€ à 32350€",2430,180,719,"B","De 16191€ à 32350€",2430,180,729,null,null,null,{"$f":"IF(AU43>0,AU40,IF(AU43<0,AU41,IF(AU43=0,AW41,\" \")))","v":"Augmentation de la cotisation annuelle au préjudice du cotisant Officier ministériel  :"}]
[null,null,null,"42 ans et un trimestre","1964-1965-1966 : 169 trimestres (42 ans et un trimestre)","Année de naissance : 1964 - 1965 ou 1966",null,"169 trimestres (42 ans et un trimestre)",null,null,null,null,{"$f":"X42","v":"Valeur du point depuis le  1er Janvier 2020"},null,{"$f":"+C21","v":0.57079999999999997},null,"Valeur du point depuis le  1er Janvier 2019",null,null,null,null,{"$f":"+AK4","v":2.86},null,null,null,null,null,null,{"$f":"IF(AC44<0,AD43,IF(AC44>0,AC42,\" \"))","v":" "},{"$f":"AD44&\" \"&Y3&\" \"&AF44","v":"Perte annuelle de pension au préjudice de l' Officier ministériel  :"},null,null,null,"C","De 32351€ à 44790€",3824,284,1134,"C","De 32351€ à 44790€",3834,284,1150,null,null,null,{"$f":"F10-U36","v":1829.3520000000008},{"$f":"F10","v":15561.2448},{"$f":"U36","v":13731.8928}]
[null,null,null,"42 ans et deux trimestres","1967-1968-1969 : 170 trimestres (42 ans et deux trimestres)","Année de naissance : 1967 - 1968 ou 1969",null,"170 trimestres (42 ans et deux trimestres)",null,null,null,null,{"$f":"E13","v":"Pension obtenue pour  42 ans et un trimestre de cotisation"},null,{"$f":"+O42*O43","v":12872.110300466744},null,{"$f":"M44","v":"Pension obtenue pour  42 ans et un trimestre de cotisation"},null,null,null,null,{"$f":"+V42*V43","v":23272.309009201799},null,null,null,null,null,null,{"$f":"CA95-CO63","v":0},"Perte annuelle de pension au préjudice de l'",null," :",null,"D","De 44791€ à 64560€",5994,444,1773,"D","De 44791€ à 64560€",5994,444,1798,null,null,null,"COTISATION CAVEC","COTISATION RU","PRESTATION CAVEC","PRESTATION RU"]
[null,null,null,"42 ans et trois trimestres","1970-1971-1972 : 171 trimestres (42 ans et trois trimestres)","Année de naissance : 1970 - 1971 ou 1972",null,"171 trimestres (42 ans et trois trimestres)",null,null,null,null,null,null,null,null,null,null,null,null,null,null,null,null,null,null,null,null,null,null,null,null,null,"E","De 64561€ à 79040€",9558,708,2827,"E","De 64561€ à 79040€",9558,708,2867,null,null,null,{"$f":"+U36","v":13731.8928},{"$f":"F10","v":15561.2448},{"$f":"CO63","v":0},{"$f":"+CA95","v":0}]
[null,{"$f":"B32","v":"Année de naissance : 1964 - 1965 ou 1966"},null,"43 ans","A partir de 1973 : 172 trimestres (43 ans).","Année de naissance : à partir de 1973",null,"172 trimestres (43 ans).",null,null,null,null,{"$f":"X46","v":"Pension totale obenue (base + complémentaire) à la   C.A.V.O.M pour  42 ans et un trimestre de cotisations :"},null,null,null,null,null,null,null,null,{"$f":"+V44+O44","v":36144.419309668541},null,{"$f":"Y46&\" \"&X3&\" \"&Z46&\" \"&E28&\" \"&AA46","v":"Pension totale obenue (base + complémentaire) à la   C.A.V.O.M pour  42 ans et un trimestre de cotisations :"},"Pension totale obenue (base + complémentaire) à la  ","pour ","de cotisations :",null,null,null,null,null,null,"F","De 79041€ à 94850€",14580,1080,4312,"F","De 79041€ à 94850€",14580,1080,4374,null,null,null,"Taux de cotisation global ",{"$f":"AU46&\" \"&X3","v":"Taux de cotisation global  C.A.V.O.M"},{"$f":"AU45/B4","v":0.19072073333333334},"Taux de cotisation global au régime universel"]
[null,null,null,"42 ans",null,"Par défaut 168 Trimestres",null,null,null,null,null,null,null,null,null,null,null,null,null,null,null,null,null,null,null,null,null,null,null,null,null,null,null,"G","De 94851 € à 132780€",16200,1200,4792,"G","De 94851 € à 132780€",16200,1200,4860,null,null,null,{"$f":"BT64-#REF!","v":{"$error":"#REF!"}},{"$f":"IF(AU47<0%,AU48,IF(AU47>0%,AV48,\" \"))","v":{"$error":"#REF!"}},null,{"$f":"AV45/B4","v":0.2161284}]
[null,null,null,null,null,null,null,null,null,null,null,null,"Résultats dans le cadre du projet de Régime Universel pour le même revenu",null,null,null,null,null,null,null,null,null,null,null,null,null,null,null,null,null,null,null,null,"H","au-delà de : 132780€",20250,1500,5990,"H","au-delà de : 132780€",20250,1500,6075,null,null,null,"diminution du taux de cotisation de : ","augmentation du taux de cotisation au Régime Universel de :"]
[null,null,null,null,null,null,null,null,null,null,null,null,"cotisation plafonnée sur 1 P.A.S.S.",null,null,null,null,{"$f":"+V10","v":72000},"X",{"$f":"B8","v":0.25309999999999999},"=",{"$f":"B10","v":10411.5216},null,null,null,null,null,null,null,null,null,null,null,null,null,null,null,null,"Vous pouvez opter pour la classe immédiatement supérieure à celle qui correspond à votre tranche de revenus libéraux professionnels et ainsi obtenir plus de points. Cette option est reconduite tacitement chaque année. Sur demande, l’affilié peut y renoncer avant le 28 février de chaque année relative à la prise d’effet."]
[null,null,null,null,null,null,null,null,null,null,null,null,{"$f":"X50","v":"cotisation plafonnée ENTRE 2 ET 3 P.A.S.S.au taux de  10,13% :"},null,null,null,null,{"$f":"F4","v":82272},{"$f":"IF(B4<=B6,\" \",IF(B4>B6,\"X\",\" \"))","v":"X"},{"$f":"IF(B4<=B6,\" \",IF(B4>B6,\"10,13%\",\" \"))","v":"10,13%"},{"$f":"IF(B4<=B6,\" \",IF(B4>B6,\"=\",\" \"))","v":"="},{"$f":"IF(V10<=O18,0,IF(V10>O18,C10,0))","v":3126.5232000000001},null,{"$f":"IF(B4<=B6,X51,IF(B4>B6,AH63,\" \"))","v":"cotisation plafonnée ENTRE 2 ET 3 P.A.S.S.au taux de  10,13% :"},null,null,null,null,null,null,null,null,null,null,132780,{"$f":"+AI50/O18","v":3.2278296382730454}]
[null,null,null,null,null,null,null,null,null,null,null,null,"Cotisation totale plafonnée créatrice de droits",null,null,null,null,{"$f":"V49","v":10411.5216},"+",{"$f":"+V50","v":3126.5232000000001},"=",{"$f":"R51+T51","v":13538.0448},null,"Pas de cotisation au second plafond (revenu net inférieur au 1er plafond)",null,null,null,null,null,null,null,null,null,null,null,null,null,null,null,null,null,null,null,null,null,null,"Pour un euro cotisé"]
[null,null,null,null,null,null,null,null,null,null,null,null,"Cotisation déplafonnée non créatrice de droits",null,null,null,null,{"$f":"V10","v":72000},"x",{"$f":"D8","v":2.81E-2},"=",{"$f":"D10","v":2023.2},null,null,null,null,null,null,null,null,null,null,null,null,null,null,null,null,null,null,null,null,null,null,null,null,{"$f":"AU53&\" \"&X3","v":"Pension obtenue pour un €uro cotisé à la  C.A.V.O.M"},{"$f":"CO63/U36","v":0}]
[null,null,null,null,null,null,null,null,null,null,null,null,"  Cotisation totale annuelle :",null,null,null,null,null,null,null,{"$f":"V51+V52","v":15561.2448},null,null,null,null,null,null,null,null,null,null,null,null,null,null,null,null,null,null,null,null,null,null,null,null,null,"Pension obtenue pour un €uro cotisé à la "]
[1,2,3,4,5,6,7,8,9,null,null,null,null,null,null,null,null,null,null,null,null,null,null,null,null,null,null,null,null,null,null,null,null,null,null,null,null,null,null,null,null,null,null,null,null,null,"Pension obtenue pour un €uro cotisé au régime universel proposé",{"$f":"CA95/#REF!","v":{"$error":"#REF!"}}]
[null,null,null,null,null,null,null,null,null,null,null,null,"POINTS ACQUIS  chaque année :",null,null,null,null,{"$f":"+V51","v":13538.0448},":",10,"=",{"$f":"+R55/T55","v":1353.80448}]
[null,null,null,null,null,null,null,null,null,null,null,null,"POINTS ACQUIS durant la carrière :",null,null,null,null,{"$f":"+V55","v":1353.80448},"x",{"$f":"F28","v":42.25},"=",{"$f":"+R56*T56","v":57198.239280000002},null,null,null,null,null,null,null,null,null,null,null,null,null,null,null,null,null,null,null,null,null,null,null,null,"POUR 1 euro cotisé, la pension au Régime Universel sera inférieure par rapport à celle servie par la ",{"$f":"IF(AV52>AV54,AU57,IF(AV52<AV54,AU58,\" \"))","v":{"$error":"#REF!"}},{"$f":"IF(AV56=AU57,(AV52-AV54)/AV52,IF(AU58=AV56,AW57,\" \"))","v":{"$error":"#REF!"}}]
[null,null,null,null,null,null,null,null,null,null,null,null,null,null,null,null,null,null,null,null,null,null,null,null,null,null,null,null,null,null,null,null,null,null,null,null,null,null,null,null,null,null,null,null,null,null,{"$f":"+AU56&\" \"&X3&\" \"&AV58","v":"POUR 1 euro cotisé, la pension au Régime Universel sera inférieure par rapport à celle servie par la  C.A.V.O.M de :"},null,{"$f":"IF(AV54>AV52,(AV54-AV52)/AV54,\" \")","v":{"$error":"#REF!"}}]
[null,null,null,null,null,null,null,null,null,null,null,null,"Pension annuelle globale telle que prévue au régime universel :",null,null,null,null,{"$f":"+V56","v":57198.239280000002},"x",0.55000000000000004,"=",{"$f":"+R58*T58","v":31459.031604000003},null,null,null,null,null,null,null,null,null,null,null,null,null,".",null,null,null,null,null,null,null,null,null,null,"POUR 1 euro cotisé, la pension obtenue au régime Universel, serait supérieure à celle obtenue à la ","de :",{"$f":"AU58&\" \"&X3&\" \"&AV58","v":"POUR 1 euro cotisé, la pension obtenue au régime Universel, serait supérieure à celle obtenue à la  C.A.V.O.M de :"}]
[]
[null,null,null,null,null,null,null,null,null,null,null,null,{"$f":"X61","v":"Comparaisons Régime  C.A.V.O.M et Régime Universel pour un même revenu de"},null,null,null,null,null,null,null,null,{"$f":"+V10","v":72000},null,"Comparaisons Régime ","et Régime Universel pour un même revenu de"]
[null,null,null,null,null,null,null,null,null,null,null,null,null,null,null,null,null,null,null,null,null,null,null,{"$f":"X60&\" \"&X3&\" \"&Y60","v":"Comparaisons Régime  C.A.V.O.M et Régime Universel pour un même revenu de"}]
[null,null,null,null,null,null,null,null,null,null,null,null,{"$f":"+D27","v":"Durée de cotisations tous régimes éxigée  169 TRIMESTRES soit : 42 ans et un trimestre"},null,null,null,null,null,null,null,null,{"$f":"+V21","v":0}]
[null,null,null,null,null,null,null,null,null,null,null,null,{"$f":"+X3","v":"C.A.V.O.M"},null,null,null,"Régime Universel",null,null,null,null,null,null,null,null,null,null,null,null,null,null,null,null,"cotisation plafonnée ENTRE 2 ET 3 P.A.S.S.au taux de  10,13% :",{"$f":"(C6-B6)*C8","v":8334.1535999999996},{"$f":"+C10","v":3126.5232000000001}]
[null,null,null,null,null,null,null,null,null,null,null,null,"COTISATION GLOBALE (base et complémentaire)",null,{"$f":"+U36","v":13731.8928},null,"Cotisation au régime Universel ",null,null,null,null,{"$f":"F10","v":15561.2448}]
[null,null,null,null,null,null,null,null,null,null,null,null,"Taux de cotisation global",null,{"$f":"+O64/B4","v":0.19072073333333334},null,"Taux de cotisation global ",null,null,null,null,{"$f":"+F8","v":0.2161284},null,null,null,null,null,null,null,null,null,null,null,null,null,null,null,"multiplié par 3) soit :"]
[null,null,null,null,null,null,null,null,null,null,null,null,"Pension  annuelle totale",null,{"$f":"+V46","v":36144.419309668541},null,"Pension annuelle  (**)",null,null,null,null,{"$f":"+V58","v":31459.031604000003},null,null,null,null,null,null,null,null,null,null,null,null,null,null,null,null,null,null,null,null,null,null,null,null,null,null,null,null,null,null,null,null,null,null,null,null,null,null,null,null,null,null,null,null,{"$f":"AV47","v":{"$error":"#REF!"}}]
[null,null,null,null,null,null,null,null,null,null,null,null,"Pension obtenue pour un €uro cotisé",null,{"$f":"O66/O64","v":2.6321512872332167},null,"Pension obtenue pour un €uro cotisé",null,null,null,null,{"$f":"V66/V64","v":2.0216269333414769},null,null,null,null,null,null,null,null,null,null,null,null,null,null,null,null,null,null,null,null,null,null,null,null,null,null,null,null,null,null,null,null,null,null,null,null,null,null,null,null,null,null,{"$f":"AU56","v":"POUR 1 euro cotisé, la pension au Régime Universel sera inférieure par rapport à celle servie par la "},null,null,null,null,"Depuis le 1er janvier 2019, la valeur du point est de :"]
[null,"ZONE DE CALCUL COMPARATIFS",{"$f":"+CS67","v":0},{"$f":"+V46","v":36144.419309668541},null,null,null,null,null,null,null,null,"Taux de remplacement",null,{"$f":"O66/V10","v":0.50200582374539637},null,"Taux de remplacement",null,null,null,null,{"$f":"V66/V10","v":0.43693099450000006},null,null,null,null,null,null,null,null,null,null,null,null,null,null,null,null,null,null,null,null,null,null,null,null,null,null,null,null,null,null,null,null,null,null,null,null,null,null,null,null,null,null,null,null,null,null,null,"Pension obtenue après 42 années de cotisation :",null,null,null,null,null,null,null,null,null,null,null,null,null,null,null,null,null,null,null,null,null,null,null,null,null,null,null,null,null,null,null,null,null,null,null,null,null,null,null,null,null,null,null,null,null,null,null,null,null,null,null,null,null,null,null,null,null,null,null,null,null,null,null,null,null,null,null,null,null,null,null,null,null,null,null,null,null,null,null,null,null,null,null,null,null,null,null,null,null,null,null,null,null,null,null,null,null,null,null,null,null,null,null,null,null,null,null,null,null,null,null,null,null,null,null,null,null,null,null,null,null,null,null,null,null,null,null,null,null,null,null,null,null,null,null,null,null,null,null,null,null,null,null,null,null,null,null,null,null,null,null,null,null,null,null,null,null,null,null,null,null,null,null,null,null,null,null,null,null,null,null,null,null,null,null,null,null,null,null,null,null,null,null,null,null,null,null,null,null,null,null,null,null,null,null,null,null,null,null,null,null,null,null,null,null,null,null,null,null,null,null,null,null,null,null,null,null,null,null,null,null,null,null,null,null,null,null,null,null,null,null,null,null,null,null,null,null,null,null,null,null,null,null,null,null,null,null,null,null,null,null,null,null,null,null,null,null,null,null,null,null,null,null,null,null,null,null,null,null,null,null,null,null,null,null,null,null,null,null,null,null,null,null,null,null,null,null,null,null,null,null,null,null,null,null,null,null,null,null,null,null,null,null,null,null,null,null,null,null,null,null,null,null,null,null,null,null,null,null,null,null,null,null,null,null,null,null,null,null,null,null,null,null,null,null,null,null,null,null,null,null,null,null,null,null,null,null,null,null,null,null,null,null,null,null,null,null,null,null,null,null,null,null,null,null,null,null,null,null,null,null,null,null,null,null,null,null,null,null,null,null,null,null,null,null,null,null,null,null,null,null,null,null,null,null,null,null,null,null,null,null,null,null,null,null,null,null,null,null,null,null,null,null,null,null,null,null,null,null,null,null,null,null,null,null,null,null,null,null,null,null,null,null,null,null,null,null,null,null,null,null,null,null,null,null,null,null,null,null,null,null,null,null,null,null,null,null,null,null,null,null,null,null,null,null,null,null,null,null,null,null,null,null,null,null,null,null,null,null,null,null,null,null,null,null,null,null,null,null,null,null,null,null,null,null,null,null,null,null,null,null,null,null,null,null,null,null,null,null,null,null,null,null,null,null,null,null,null,null,null,null,null,null,null,null,null,null,null,null,null,null,null,null,null,null,null,null,null,null,null,null,null,null,null,null,null,null,null,null,null,null,null,null,null,null,null,null,null,null,null,null,null,null,null,null,null,null,null,null,null,null,null,null,null,null,null,null,null,null,null,null,null,null,null,null,null,null,null,null,null,null,null,null,null,null,null,null,null,null,null,null,null,null,null,null,null,null,null,null,null,null,null,null,null,null,null,null,null,null,null,null,null,null,null,null,null,null,null,null,null,null,null,null,null,null,null,null,null,null,null,null,null,null,null,null,null,null,null,null,null,null,null,null,null,null,null,null,null,null,null,null,null,null,null,null,null,null,null,null,null,null,null,null,null,null,null,null,null,null,null,null,null,null,null,null,null,null,null,null,null,null,null,null,null,null,null,null,null,null,null,null,null,null,null,null,null,null,null,null,null,null,null,null,null,null,null,null,null,null,null,null,null,null,null,null,null,null,null,null,null,null,null,null,null,null,null,null,null,null,null,null,null,null,null,null,null,null,null,null,null,null,null,null,null,null,null,null,null,null,null,null,null,null,null,null,null,null,null,null,null,null,null,null,null,null,null,null,null,null,null,null,null,null,null,null,null,null,null,null,null,null,null,null,null,null,null,null,null,null,null,null,null,null,null,null,null,null,null,null,null,null,null,null,null,null,null,null,null,null,null,null,null,null,null,null,null,null,null,null,null,null,null,null,null,null,null,null,null,null,null,null,null,null,null,null,null,null,null,null,null,null,null,null,null,null,null,null,null,null,null,null,null,null,null,null,null,null,null,null,null,null,null,null,null,null,null,null,null,null,null,null,null,null,null,null,null,null,null,null,null,null,null,null,null,null,null,null,null,null,null,null,null,null,null,null,null,null,null,null,null,null,null,null,null,null,null,null,null,null,null,null,null,null,null,null,null,null,null,null,null,null,null,null,null,null,null,null,null,null,null,null,null,null,null,null,null,null,null,null,null,null,null,null,null,null,null,null,null,null,null,null,null,null,null,null,null,null,null,null,null,null,null,null,null,null,null,null,null,null,null,null,null,null,null,null,null,null,null,null,null,null,null,null,null,null,null,null,null,null,null,null,null,null,null,null,null,null,null,null,null,null,null,null,null,null,null,null,null,null,null,null,null,null,null,null,null,null,null,null,null,null,null,null,null,null,null,null,null,null,null,null,null,null,null,null,null,null,null,null,null,null,null,null,null,null,null,null,null,null,null,null,null,null,null,null,null,null,null,null,null,null,null,null,null,null,null,null,null,null,null,null,null,null,null,null,null,null,null,null,null,null,null,null,null,null,null,null,null,null,null,null,null,null,null,null,null,null,null,null,null,null,null,null,null,null,null,null,null,null,null,null,null,null,null,null,null,null,null,null,null,null,null,null,null,null,null,null,null,null,null,null,null,null,null,null,null,null,null,null,null,null,null,null,null,null,null,null,null,null,null,null,null,null,null,null,null,null,null,null,null,null,null,null,null,null,null,null,null,null,null,null,null,null,null,null,null,null,null,null,null,null,null,null,null,null,null,null,null,null,null,null,null,null,null,null,null,null,null,null,null,null,null,null,null,null,null,null,null,null,null,null,null,null,null,null,null,null,null,null,null,null,null,null,null,null,null,null,null,null,null,null,null,null,null,null,null,null,null,null,null,null,null,null,null,null,null,null,null,null,null,null,null,null,null,null,null,null,null,null,null,null,null,null,null,null,null,null,null,null,null,null,null,null,null,null,null,null,null,null,null,null,null,null,null,null,null,null,null,null,null,null,null,null,null,null,null,null,null,null,null,null,null,null,null,null,null,null,null,null,null,null,null,null,null,null,null,null,null,null,null,null,null,null,null,null,null,null,null,null,null,null,null,null,null,null,null,null,null,null,null,null,null,null,null,null,null,null,null,null,null,null,null,null,null,null,null,null,null,null,null,null,null,null,null,null,null,null,null,null,null,null,null,null,null,null,null,null,null,null,null,null,null,null,null,null,null,null,null,null,null,null,null,null,null,null,null,null,null,null,null,null,null,null,null,null,null,null,null,null,null,null,null,null,null,null,null,null,null,null,null,null,null,null,null,null,null,null,null,null,null,null,null,null,null,null,null,null,null,null,null,null,null,null,null,null,null,null,null,null,null,null,null,null,null,null,null,null,null,null,null,null,null,null,null,null,null,null,null,null,null,null,null,null,null,null,null,null,null,null,null,null,null,null,null,null,null,null,null,null,null,null,null,null,null,null,null,null,null,null,null,null,null,null,null,null,null,null,null,null,null,null,null,null,null,null,null,null,null,null,null,null,null,null,null,null,null,null,null,null,null,null,null,null,null,null,null,null,null,null,null,null,null,null,null,null,null,null,null,null,null,null,null,null,null,null,null,null,null,null,null,null,null,null,null,null,null,null,null,null,null,null,null,null,null,null,null,null,null,null,null,null,null,null,null,null,null,null,null,null,null,null,null,null,null,null,null,null,null,null,null,null,null,null,null,null,null,null,null,null,null,null,null,null,null,null,null,null,null,null,null,null,null,null,null,null,null,null,null,null,null,null,null,null,null,null,null,null,null,null,null,null,null,null,null,null,null,null,null,null,null,null,null,null,null,null,null,null,null,null,null,null,null,null,null,null,null,null,null,null,null,null,null,null,null,null,null,null,null,null,null,null,null,null,null,null,null,null,null,null,null,null,null,null,null,null,null,null,null,null,null,null,null,null,null,null,null,null,null,null,null,null,null,null,null,null,null,null,null,null,null,null,null,null,null,null,null,null,null,null,null,null,null,null,null,null,null,null,null,null,null,null,null,null,null,null,null,null,null,null,null,null,null,null,null,null,null,null,null,null,null,null,null,null,null,null,null,null,null,null,null,null,null,null,null,null,null,null,null,null,null,null,null,null,null,null,null,null,null,null,null,null,null,null,null,null,null,null,null,null,null,null,null,null,null,null,null,null,null,null,null,null,null,null,null,null,null,null,null,null,null,null,null,null,null,null,null,null,null,null,null,null,null,null,null,null,null,null,null,null,null,null,null,null,null,null,null,null,null,null,null,null,null,null,null,null,null,null,null,null,null,null,null,null,null,null,null,null,null,null,null,null,null,null,null,null,null,null,null,null,null,null,null,null,null,null,null,null,null,null,null,null,null,null,null,null,null,null,null,null,null,null,null,null,null,null,null,null,null,null,null,null,null,null,null,null,null,null,null,null,null,null,null,null,null,null,null,null,null,null,null,null,null,null,null,null,null,null,null,null,null,null,null,null,null,null,null,null,null,null,null,null,null,null,null,null,null,null,null,null,null,null,null,null,null,null,null,null,null,null,null,null,null,null,null,null,null,null,null,null,null,null,null,null,null,null,null,null,null,null,null,null,null,null,null,null,null,null,null,null,null,null,null,null,null,null,null,null,null,null,null,null,null,null,null,null,null,null,null,null,null,null,null,null,null,null,null,null,null,null,null,null,null,null,null,null,null,null,null,null,null,null,null,null,null,null,null,null,null,null,null,null,null,null,null,null,null,null,null,null,null,null,null,null,null,null,null,null,null,null,null,null,null,null,null,null,null,null,null,null,null,null,null,null,null,null,null,null,null,null,null,null,null,null,null,null,null,null,null,null,null,null,null,null,null,null,null,null,null,null,null,null,null,null,null,null,null,null,null,null,null,null,null,null,null,null,null,null,null,null,null,null,null,null,null,null,null,null,null,null,null,null,null,null,null,null,null,null,null,null,null,null,null,null,null,null,null,null,null,null,null,null,null,null,null,null,null,null,null,null,null,null,null,null,null,null,null,null,null,null,null,null,null,null,null,null,null,null,null,null,null,null,null,null,null,null,null,null,null,null,null,null,null,null,null,null,null,null,null,null,null,null,null,null,null,null,null,null,null,null,null,null,null,null,null,null,null,null,null,null,null,null,null,null,null,null,null,null,null,null,null,null,null,null,null,null,null,null,null,null,null,null,null,null,null,null,null,null,null,null,null,null,null,null,null,null,null,null,null,null,null,null,null,null,null,null,null,null,null,null,null,null,null,null,null,null,null,null,null,null,null,null,null,null,null,null,null,null,null,null,null,null,null,null,null,null,null,null,null,null,null,null,null,null,null,null,null,null,null,null,null,null,null,null,null,null,null,null,null,null,null,null,null,null,null,null,null,null,null,null,null,null,null,null,null,null,null,null,null,null,null,null,null,null,null,null,null,null,null,null,null,null,null,null,null,null,null,null,null,null,null,null,null,null,null,null,null,null,null,null,null,null,null,null,null,null,null,null,null,null,null,null,null,null,null,null,null,null,null,null,null,null,null,null,null,null,null,null,null,null,null,null,null,null,null,null,null,null,null,null,null,null,null,null,null,null,null,null,null,null,null,null,null,null,null,null,null,null,null,null,null,null,null,null,null,null,null,null,null,null,null,null,null,null,null,null,null,null,null,null,null,null,null,null,null,null,null,null,null,null,null,null,null,null,null,null,null,null,null,null,null,null,null,null,null,null,null,null,null,null,null,null,null,null,null,null,null,null,null,null,null,null,null,null,null,null,null,null,null,null,null,null,null,null,null,null,null,null,null,null,null,null,null,null,null,null,null,null,null,null,null,null,null,null,null,null,null,null,null,null,null,null,null,null,null,null,null,null,null,null,null,null,null,null,null,null,null,null,null,null,null,null,null,null,null,null,null,null,null,null,null,null,null,null,null,null,null,null,null,null,null,null,null,null,null,null,null,null,null,null,null,null,null,null,null,null,null,null,null,null,null,null,null,null,null,null,null,null,null,null,null,null,null,null,null,null,null,null,null,null,null,null,null,null,null,null,null,null,null,null,null,null,null,null,null,null,null,null,null,null,null,null,null,null,null,null,null,null,null,null,null,null,null,null,null,null,null,null,null,null,null,null,null,null,null,null,null,null,null,null,null,null,null,null,null,null,null,null,null,null,null,null,null,null,null,null,null,null,null,null,null,null,null,null,null,null,null,null,null,null,null,null,null,null,null,null,null,null,null,null,null,null,null,null,null,null,null,null,null,null,null,null,null,null,null,null,null,null,null,null,null,null,null,null,null,null,null,null,null,null,null,null,null,null,null,null,null,null,null,null,null,null,null,null,null,null,null,null,null,null,null,null,null,null,null,null,null,null,null,null,null,null,null,null,null,null,null,null,null,null,null,null,null,null,null,null,null,null,null,null,null,null,null,null,null,null,null,null,null,null,null,null,null,null,null,null,null,null,null,null,null,null,null,null,null,null,null,null,null,null,null,null,null,null,null,null,null,null,null,null,null,null,null,null,null,null,null,null,null,null,null,null,null,null,null,null,null,null,null,null,null,null,null,null,null,null,null,null,null,null,null,null,null,null,null,null,null,null,null,null,null,null,null,null,null,null,null,null,null,null,null,null,null,null,null,null,null,null,null,null,null,null,null,null,null,null,null,null,null,null,null,null,null,null,null,null,null,null,null,null,null,null,null,null,null,null,null,null,null,null,null,null,null,null,null,null,null,null,null,null,null,null,null,null,null,null,null,null,null,null,null,null,null,null,null,null,null,null,null,null,null,null,null,null,null,null,null,null,null,null,null,null,null,null,null,null,null,null,null,null,null,null,null,null,null,null,null,null,null,null,null,null,null,null,null,null,null,null,null,null,null,null,null,null,null,null,null,null,null,null,null,null,null,null,null,null,null,null,null,null,null,null,null,null,null,null,null,null,null,null,null,null,null,null,null,null,null,null,null,null,null,null,null,null,null,null,null,null,null,null,null,null,null,null,null,null,null,null,null,null,null,null,null,null,null,null,null,null,null,null,null,null,null,null,null,null,null,null,null,null,null,null,null,null,null,null,null,null,null,null,null,null,null,null,null,null,null,null,null,null,null,null,null,null,null,null,null,null,null,null,null,null,null,null,null,null,null,null,null,null,null,null,null,null,null,null,null,null,null,null,null,null,null,null,null,null,null,null,null,null,null,null,null,null,null,null,null,null,null,null,null,null,null,null,null,null,null,null,null,null,null,null,null,null,null,null,null,null,null,null,null,null,null,null,null,null,null,null,null,null,null,null,null,null,null,null,null,null,null,null,null,null,null,null,null,null,null,null,null,null,null,null,null,null,null,null,null,null,null,null,null,null,null,null,null,null,null,null,null,null,null,null,null,null,null,null,null,null,null,null,null,null,null,null,null,null,null,null,null,null,null,null,null,null,null,null,null,null,null,null,null,null,null,null,null,null,null,null,null,null,null,null,null,null,null,null,null,null,null,null,null,null,null,null,null,null,null,null,null,null,null,null,null,null,null,null,null,null,null,null,null,null,null,null,null,null,null,null,null,null,null,null,null,null,null,null,null,null,null,null,null,null,null,null,null,null,null,null,null,null,null,null,null,null,null,null,null,null,null,null,null,null,null,null,null,null,null,null,null,null,null,null,null,null,null,null,null,null,null,null,null,null,null,null,null,null,null,null,null,null,null,null,null,null,null,null,null,null,null,null,null,null,null,null,null,null,null,null,null,null,null,null,null,null,null,null,null,null,null,null,null,null,null,null,null,null,null,null,null,null,null,null,null,null,null,null,null,null,null,null,null,null,null,null,null,null,null,null,null,null,null,null,null,null,null,null,null,null,null,null,null,null,null,null,null,null,null,null,null,null,null,null,null,null,null,null,null,null,null,null,null,null,null,null,null,null,null,null,null,null,null,null,null,null,null,null,null,null,null,null,null,null,null,null,null,null,null,null,null,null,null,null,null,null,null,null,null,null,null,null,null,null,null,null,null,null,null,null,null,null,null,null,null,null,null,null,null,null,null,null,null,null,null,null,null,null,null,null,null,null,null,null,null,null,null,null,null,null,null,null,null,null,null,null,null,null,null,null,null,null,null,null,null,null,null,null,null,null,null,null,null,null,null,null,null,null,null,null,null,null,null,null,null,null,null,null,null,null,null,null,null,null,null,null,null,null,null,null,null,null,null,null,null,null,null,null,null,null,null,null,null,null,null,null,null,null,null,null,null,null,null,null,null,null,null,null,null,null,null,null,null,null,null,null,null,null,null,null,null,null,null,null,null,null,null,null,null,null,null,null,null,null,null,null,null,null,null,null,null,null,null,null,null,null,null,null,null,null,null,null,null,null,null,null,null,null,null,null,null,null,null,null,null,null,null,null,null,null,null,null,null,null,null,null,null,null,null,null,null,null,null,null,null,null,null,null,null,null,null,null,null,null,null,null,null,null,null,null,null,null,null,null,null,null,null,null,null,null,null,null,null,null,null,null,null,null,null,null,null,null,null,null,null,null,null,null,null,null,null,null,null,null,null,null,null,null,null,null,null,null,null,null,null,null,null,null,null,null,null,null,null,null,null,null,null,null,null,null,null,null,null,null,null,null,null,null,null,null,null,null,null,null,null,null,null,null,null,null,null,null,null,null,null,null,null,null,null,null,null,null,null,null,null,null,null,null,null,null,null,null,null,null,null,null,null,null,null,null,null,null,null,null,null,null,null,null,null,null,null,null,null,null,null,null,null,null,null,null,null,null,null,null,null,null,null,null,null,null,null,null,null,null,null,null,null,null,null,null,null,null,null,null,null,null,null,null,null,null,null,null,null,null,null,null,null,null,null,null,null,null,null,null,null,null,null,null,null,null,null,null,null,null,null,null,null,null,null,null,null,null,null,null,null,null,null,null,null,null,null,null,null,null,null,null,null,null,null,null,null,null,null,null,null,null,null,null,null,null,null,null,null,null,null,null,null,null,null,null,null,null,null,null,null,null,null,null,null,null,null,null,null,null,null,null,null,null,null,null,null,null,null,null,null,null,null,null,null,null,null,null,null,null,null,null,null,null,null,null,null,null,null,null,null,null,null,null,null,null,null,null,null,null,null,null,null,null,null,null,null,null,null,null,null,null,null,null,null,null,null,null,null,null,null,null,null,null,null,null,null,null,null,null,null,null,null,null,null,null,null,null,null,null,null,null,null,null,null,null,null,null,null,null,null,null,null,null,null,null,null,null,null,null,null,null,null,null,null,null,null,null,null,null,null,null,null,null,null,null,null,null,null,null,null,null,null,null,null,null,null,null,null,null,null,null,null,null,null,null,null,null,null,null,null,null,null,null,null,null,null,null,null,null,null,null,null,null,null,null,null,null,null,null,null,null,null,null,null,null,null,null,null,null,null,null,null,null,null,null,null,null,null,null,null,null,null,null,null,null,null,null,null,null,null,null,null,null,null,null,null,null,null,null,null,null,null,null,null,null,null,null,null,null,null,null,null,null,null,null,null,null,null,null,null,null,null,null,null,null,null,null,null,null,null,null,null,null,null,null,null,null,null,null,null,null,null,null,null,null,null,null,null,null,null,null,null,null,null,null,null,null,null,null,null,null,null,null,null,null,null,null,null,null,null,null,null,null,null,null,null,null,null,null,null,null,null,null,null,null,null,null,null,null,null,null,null,null,null,null,null,null,null,null,null,null,null,null,null,null,null,null,null,null,null,null,null,null,null,null,null,null,null,null,null,null,null,null,null,null,null,null,null,null,null,null,null,null,null,null,null,null,null,null,null,null,null,null,null,null,null,null,null,null,null,null,null,null,null,null,null,null,null,null,null,null,null,null,null,null,null,null,null,null,null,null,null,null,null,null,null,null,null,null,null,null,null,null,null,null,null,null,null,null,null,null,null,null,null,null,null,null,null,null,null,null,null,null,null,null,null,null,null,null,null,null,null,null,null,null,null,null,null,null,null,null,null,null,null,null,null,null,null,null,null,null,null,null,null,null,null,null,null,null,null,null,null,null,null,null,null,null,null,null,null,null,null,null,null,null,null,null,null,null,null,null,null,null,null,null,null,null,null,null,null,null,null,null,null,null,null,null,null,null,null,null,null,null,null,null,null,null,null,null,null,null,null,null,null,null,null,null,null,null,null,null,null,null,null,null,null,null,null,null,null,null,null,null,null,null,null,null,null,null,null,null,null,null,null,null,null,null,null,null,null,null,null,null,null,null,null,null,null,null,null,null,null,null,null,null,null,null,null,null,null,null,null,null,null,null,null,null,null,null,null,null,null,null,null,null,null,null,null,null,null,null,null,null,null,null,null,null,null,null,null,null,null,null,null,null,null,null,null,null,null,null,null,null,null,null,null,null,null,null,null,null,null,null,null,null,null,null,null,null,null,null,null,null,null,null,null,null,null,null,null,null,null,null,null,null,null,null,null,null,null,null,null,null,null,null,null,null,null,null,null,null,null,null,null,null,null,null,null,null,null,null,null,null,null,null,null,null,null,null,null,null,null,null,null,null,null,null,null,null,null,null,null,null,null,null,null,null,null,null,null,null,null,null,null,null,null,null,null,null,null,null,null,null,null,null,null,null,null,null,null,null,null,null,null,null,null,null,null,null,null,null,null,null,null,null,null,null,null,null,null,null,null,null,null,null,null,null,null,null,null,null,null,null,null,null,null,null,null,null,null,null,null,null,null,null,null,null,null,null,null,null,null,null,null,null,null,null,null,null,null,null,null,null,null,null,null,null,null,null,null,null,null,null,null,null,null,null,null,null,null,null,null,null,null,null,null,null,null,null,null,null,null,null,null,null,null,null,null,null,null,null,null,null,null,null,null,null,null,null,null,null,null,null,null,null,null,null,null,null,null,null,null,null,null,null,null,null,null,null,null,null,null,null,null,null,null,null,null,null,null,null,null,null,null,null,null,null,null,null,null,null,null,null,null,null,null,null,null,null,null,null,null,null,null,null,null,null,null,null,null,null,null,null,null,null,null,null,null,null,null,null,null,null,null,null,null,null,null,null,null,null,null,null,null,null,null,null,null,null,null,null,null,null,null,null,null,null,null,null,null,null,null,null,null,null,null,null,null,null,null,null,null,null,null,null,null,null,null,null,null,null,null,null,null,null,null,null,null,null,null,null,null,null,null,null,null,null,null,null,null,null,null,null,null,null,null,null,null,null,null,null,null,null,null,null,null,null,null,null,null,null,null,null,null,null,null,null,null,null,null,null,null,null,null,null,null,null,null,null,null,null,null,null,null,null,null,null,null,null,null,null,null,null,null,null,null,null,null,null,null,null,null,null,null,null,null,null,null,null,null,null,null,null,null,null,null,null,null,null,null,null,null,null,null,null,null,null,null,null,null,null,null,null,null,null,null,null,null,null,null,null,null,null,null,null,null,null,null,null,null,null,null,null,null,null,null,null,null,null,null,null,null,null,null,null,null,null,null,null,null,null,null,null,null,null,null,null,null,null,null,null,null,null,null,null,null,null,null,null,null,null,null,null,null,null,null,null,null,null,null,null,null,null,null,null,null,null,null,null,null,null,null,null,null,null,null,null,null,null,null,null,null,null,null,null,null,null,null,null,null,null,null,null,null,null,null,null,null,null,null,null,null,null,null,null,null,null,null,null,null,null,null,null,null,null,null,null,null,null,null,null,null,null,null,null,null,null,null,null,null,null,null,null,null,null,null,null,null,null,null,null,null,null,null,null,null,null,null,null,null,null,null,null,null,null,null,null,null,null,null,null,null,null,null,null,null,null,null,null,null,null,null,null,null,null,null,null,null,null,null,null,null,null,null,null,null,null,null,null,null,null,null,null,null,null,null,null,null,null,null,null,null,null,null,null,null,null,null,null,null,null,null,null,null,null,null,null,null,null,null,null,null,null,null,null,null,null,null,null,null,null,null,null,null,null,null,null,null,null,null,null,null,null,null,null,null,null,null,null,null,null,null,null,null,null,null,null,null,null,null,null,null,null,null,null,null,null,null,null,null,null,null,null,null,null,null,null,null,null,null,null,null,null,null,null,null,null,null,null,null,null,null,null,null,null,null,null,null,null,null,null,null,null,null,null,null,null,null,null,null,null,null,null,null,null,null,null,null,null,null,null,null,null,null,null,null,null,null,null,null,null,null,null,null,null,null,null,null,null,null,null,null,null,null,null,null,null,null,null,null,null,null,null,null,null,null,null,null,null,null,null,null,null,null,null,null,null,null,null,null,null,null,null,null,null,null,null,null,null,null,null,null,null,null,null,null,null,null,null,null,null,null,null,null,null,null,null,null,null,null,null,null,null,null,null,null,{"$f":"O67-V67","v":0.61052435389173976},{"$f":"HBI68/O67","v":0.23194880813005694}]
[null,{"$f":"IF(C69<0,E69,IF(C69>0,D69,\" \"))","v":"Perte annuelle de pension au préjudice de l' Officier ministériel"},{"$f":"V66-O66","v":-4685.3877056685378},{"$f":"+G69&\" \"&Y3","v":"gain de pension pour l' Officier ministériel"},{"$f":"F69&\" \"&Y3","v":"Perte annuelle de pension au préjudice de l' Officier ministériel"},"Perte annuelle de pension au préjudice de l'","gain de pension pour l'",null,null,null,null,null,{"$f":"B69","v":"Perte annuelle de pension au préjudice de l' Officier ministériel"},null,null,null,null,null,null,null,null,{"$f":"ABS(C69)","v":4685.3877056685378}]
[null,{"$f":"F70&\" \"&Y3","v":"Augmentation de la cotisation annuelle au préjudice de l' Officier ministériel"},{"$f":"E70&\" \"&Y3","v":"Diminution de la cotisation au bénéfice de l' Officier ministériel"},{"$f":"V64-O64","v":1829.3520000000008},"Diminution de la cotisation au bénéfice de l'","Augmentation de la cotisation annuelle au préjudice de l'",null,null,null,null,null,null,{"$f":"IF(V64>O64,B70,IF(V64<O64,C70,\" \"))","v":"Augmentation de la cotisation annuelle au préjudice de l' Officier ministériel"},null,null,null,null,null,null,null,null,{"$f":"ABS(D70)","v":1829.3520000000008}]
[null,{"$f":"IF(C71<0%,D71,IF(C71>0%,E71,\" \"))","v":"Augmentation du taux de cotisation au Régime Universel de"},{"$f":"V65-O65","v":2.5407666666666662E-2},"Diminution du taux de cotisation de","Augmentation du taux de cotisation au Régime Universel de",null,null,null,null,null,null,null,{"$f":"B71","v":"Augmentation du taux de cotisation au Régime Universel de"},null,null,null,null,null,null,null,null,{"$f":"ABS(C71)","v":2.5407666666666662E-2},null,null,null,null,null,null,null,null,null,null,null,null,null,null,null,null,null,null,null,null,null,null,null,null,null,null,null,null,null,null,null,null,null,null,null,null,null,null,null,null,null,null,"Part des cotisations à la retraite de base C.N.B.F.  réservée à la solidarité Nationale :"]
[null,{"$f":"IF(C72<0,E72,IF(C72>0,D72,\" \"))","v":"Par tranche de 1.000  euros cotisés au Régime Universel, la perte de pension sera de :"},{"$f":"(O67-V67)*1000","v":610.52435389173979},"Par tranche de 1.000  euros cotisés au Régime Universel, la perte de pension sera de :","Par tranche de 1.000  euros cotisés au Régime Universel, le gain de pension sera de :",null,"ZONE DE CALCUL COMPARATIFS",null,null,null,null,null,null,{"$f":"+B72","v":"Par tranche de 1.000  euros cotisés au Régime Universel, la perte de pension sera de :"},null,null,null,null,null,null,null,{"$f":"C72","v":610.52435389173979},null,null,null,null,null,null,null,null,null,null,null,null,null,null,null,null,null,null,null,null,null,null,null,null,null,null,null,null,null,null,null,null,null,null,null,null,null,null,null,null,null,null,null,null,null,null,null,null,null,null,null,null,null,null,null,null,null,null,null,null,null,null,null,null,null,null,null,null,null,null,null,null,null,null,null,null,null,null,null,null,null,null,null,null,null,null,null,null,null,null,null,null,null,null,null,null,null,null,null,null,null,null,null,null,null,null,null,null,null,null,null,null,null,null,null,null,null,null,null,null,null,null,null,null,null,null,null,null,null,null,null,null,null,null,null,null,null,null,null,null,null,null,null,null,null,null,null,null,null,null,null,null,null,null,null,null,null,null,null,null,null,null,null,null,null,null,null,null,null,null,null,null,null,null,null,null,null,null,null,null,null,null,null,null,null,null,null,null,null,null,null,null,null,null,null,null,null,null,null,null,null,null,null,null,null,null,null,null,null,null,null,null,null,null,null,null,null,null,null,null,null,null,null,null,null,null,null,null,null,null,null,null,null,null,null,null,null,null,null,null,null,null,null,null,null,null,null,null,null,null,null,null,null,null,null,null,null,null,null,null,null,null,null,null,null,null,null,null,null,null,null,null,null,null,null,null,null,null,null,null,null,null,null,null,null,null,null,null,null,null,null,null,null,null,null,null,null,null,null,null,null,null,null,null,null,null,null,null,null,null,null,null,null,null,null,null,null,null,null,null,null,null,null,null,null,null,null,null,null,null,null,null,null,null,null,null,null,null,null,null,null,null,null,null,null,null,null,null,null,null,null,null,null,null,null,null,null,null,null,null,null,null,null,null,null,null,null,null,null,null,null,null,null,null,null,null,null,null,null,null,null,null,null,null,null,null,null,null,null,null,null,null,null,null,null,null,null,null,null,null,null,null,null,null,null,null,null,null,null,null,null,null,null,null,null,null,null,null,null,null,null,null,null,null,null,null,null,null,null,null,null,null,null,null,null,null,null,null,null,null,null,null,null,null,null,null,null,null,null,null,null,null,null,null,null,null,null,null,null,null,null,null,null,null,null,null,null,null,null,null,null,null,null,null,null,null,null,null,null,null,null,null,null,null,null,null,null,null,null,null,null,null,null,null,null,null,null,null,null,null,null,null,null,null,null,null,null,null,null,null,null,null,null,null,null,null,null,null,null,null,null,null,null,null,null,null,null,null,null,null,null,null,null,null,null,null,null,null,null,null,null,null,null,null,null,null,null,null,null,null,null,null,null,null,null,null,null,null,null,null,null,null,null,null,null,null,null,null,null,null,null,null,null,null,null,null,null,null,null,null,null,null,null,null,null,null,null,null,null,null,null,null,null,null,null,null,null,null,null,null,null,null,null,null,null,null,null,null,null,null,null,null,null,null,null,null,null,null,null,null,null,null,null,null,null,null,null,null,null,null,null,null,null,null,null,null,null,null,null,null,null,null,null,null,null,null,null,null,null,null,null,null,null,null,null,null,null,null,null,null,null,null,null,null,null,null,null,null,null,null,null,null,null,null,null,null,null,null,null,null,null,null,null,null,null,null,null,null,null,null,null,null,null,null,null,null,null,null,null,null,null,null,null,null,null,null,null,null,null,null,null,null,null,null,null,null,null,null,null,null,null,null,null,null,null,null,null,null,null,null,null,null,null,null,null,null,null,null,null,null,null,null,null,null,null,null,null,null,null,null,null,null,null,null,null,null,null,null,null,null,null,null,null,null,null,null,null,null,null,null,null,null,null,null,null,null,null,null,null,null,null,null,null,null,null,null,null,null,null,null,null,null,null,null,null,null,null,null,null,null,null,null,null,null,null,null,null,null,null,null,null,null,null,null,null,null,null,null,null,null,null,null,null,null,null,null,null,null,null,null,null,null,null,null,null,null,null,null,null,null,null,null,null,null,null,null,null,null,null,null,null,null,null,null,null,null,null,null,null,null,null,null,null,null,null,null,null,null,null,null,null,null,null,null,null,null,null,null,null,null,null,null,null,null,null,null,null,null,null,null,null,null,null,null,null,null,null,null,null,null,null,null,null,null,null,null,null,null,null,null,null,null,null,null,null,null,null,null,null,null,null,null,null,null,null,null,null,null,null,null,null,null,null,null,null,null,null,null,null,null,null,null,null,null,null,null,null,null,null,null,null,null,null,null,null,null,null,null,null,null,null,null,null,null,null,null,null,null,null,null,null,null,null,null,null,null,null,null,null,null,null,null,null,null,null,null,null,null,null,null,null,null,null,null,null,null,null,null,null,null,null,null,null,null,null,null,null,null,null,null,null,null,null,null,null,null,null,null,null,null,null,null,null,null,null,null,null,null,null,null,null,null,null,null,null,null,null,null,null,null,null,null,null,null,null,null,null,null,null,null,null,null,null,null,null,null,null,null,null,null,null,null,null,null,null,null,null,null,null,null,null,null,null,null,null,null,null,null,null,null,null,null,null,null,null,null,null,null,null,null,null,null,null,null,null,null,null,null,null,null,null,null,null,null,null,null,null,null,null,null,null,null,null,null,null,null,null,null,null,null,null,null,null,null,null,null,null,null,null,null,null,null,null,null,null,null,null,null,null,null,null,null,null,null,null,null,null,null,null,null,null,null,null,null,null,null,null,null,null,null,null,null,null,null,null,null,null,null,null,null,null,null,null,null,null,null,null,null,null,null,null,null,null,null,null,null,null,null,null,null,null,null,null,null,null,null,null,null,null,null,null,null,null,null,null,null,null,null,null,null,null,null,null,null,null,null,null,null,null,null,null,null,null,null,null,null,null,null,null,null,null,null,null,null,null,null,null,null,null,null,null,null,null,null,null,null,null,null,null,null,null,null,null,null,null,null,null,null,null,null,null,null,null,null,null,null,null,null,null,null,null,null,null,null,null,null,null,null,null,null,null,null,null,null,null,null,null,null,null,null,null,null,null,null,null,null,null,null,null,null,null,null,null,null,null,null,null,null,null,null,null,null,null,null,null,null,null,null,null,null,null,null,null,null,null,null,null,null,null,null,null,null,null,null,null,null,null,null,null,null,null,null,null,null,null,null,null,null,null,null,null,null,null,null,null,null,null,null,null,null,null,null,null,null,null,null,null,null,null,null,null,null,null,null,null,null,null,null,null,null,null,null,null,null,null,null,null,null,null,null,null,null,null,null,null,null,null,null,null,null,null,null,null,null,null,null,null,null,null,null,null,null,null,null,null,null,null,null,null,null,null,null,null,null,null,null,null,null,null,null,null,null,null,null,null,null,null,null,null,null,null,null,null,null,null,null,null,null,null,null,null,null,null,null,null,null,null,null,null,null,null,null,null,null,null,null,null,null,null,null,null,null,null,null,null,null,null,null,null,null,null,null,null,null,null,null,null,null,null,null,null,null,null,null,null,null,null,null,null,null,null,null,null,null,null,null,null,null,null,null,null,null,null,null,null,null,null,null,null,null,null,null,null,null,null,null,null,null,null,null,null,null,null,null,null,null,null,null,null,null,null,null,null,null,null,null,null,null,null,null,null,null,null,null,null,null,null,null,null,null,null,null,null,null,null,null,null,null,null,null,null,null,null,null,null,null,null,null,null,null,null,null,null,null,null,null,null,null,null,null,null,null,null,null,null,null,null,null,null,null,null,null,null,null,null,null,null,null,null,null,null,null,null,null,null,null,null,null,null,null,null,null,null,null,null,null,null,null,null,null,null,null,null,null,null,null,null,null,null,null,null,null,null,null,null,null,null,null,null,null,null,null,null,null,null,null,null,null,null,null,null,null,null,null,null,null,null,null,null,null,null,null,null,null,null,null,null,null,null,null,null,null,null,null,null,null,null,null,null,null,null,null,null,null,null,null,null,null,null,null,null,null,null,null,null,null,null,null,null,null,null,null,null,null,null,null,null,null,null,null,null,null,null,null,null,null,null,null,null,null,null,null,null,null,null,null,null,null,null,null,null,null,null,null,null,null,null,null,null,null,null,null,null,null,null,null,null,null,null,null,null,null,null,null,null,null,null,null,null,null,null,null,null,null,null,null,null,null,null,null,null,null,null,null,null,null,null,null,null,null,null,null,null,null,null,null,null,null,null,null,null,null,null,null,null,null,null,null,null,null,null,null,null,null,null,null,null,null,null,null,null,null,null,null,null,null,null,null,null,null,null,null,null,null,null,null,null,null,null,null,null,null,null,null,null,null,null,null,null,null,null,null,null,null,null,null,null,null,null,null,null,null,null,null,null,null,null,null,null,null,null,null,null,null,null,null,null,null,null,null,null,null,null,null,null,null,null,null,null,null,null,null,null,null,null,null,null,null,null,null,null,null,null,null,null,null,null,null,null,null,null,null,null,null,null,null,null,null,null,null,null,null,null,null,null,null,null,null,null,null,null,null,null,null,null,null,null,null,null,null,null,null,null,null,null,null,null,null,null,null,null,null,null,null,null,null,null,null,null,null,null,null,null,null,null,null,null,null,null,null,null,null,null,null,null,null,null,null,null,null,null,null,null,null,null,null,null,null,null,null,null,null,null,null,null,null,null,null,null,null,null,null,null,null,null,null,null,null,null,null,null,null,null,null,null,null,null,null,null,null,null,null,null,null,null,null,null,null,null,null,null,null,null,null,null,null,null,null,null,null,null,null,null,null,null,null,null,null,null,null,null,null,null,null,null,null,null,null,null,null,null,null,null,null,null,null,null,null,null,null,null,null,null,null,null,null,null,null,null,null,null,null,null,null,null,null,null,null,null,null,null,null,null,null,null,null,null,null,null,null,null,null,null,null,null,null,null,null,null,null,null,null,null,null,null,null,null,null,null,null,null,null,null,null,null,null,null,null,null,null,null,null,null,null,null,null,null,null,null,null,null,null,null,null,null,null,null,null,null,null,null,null,null,null,null,null,null,null,null,null,null,null,null,null,null,null,null,null,null,null,null,null,null,null,null,null,null,null,null,null,null,null,null,null,null,null,null,null,null,null,null,null,null,null,null,null,null,null,null,null,null,null,null,null,null,null,null,null,null,null,null,null,null,null,null,null,null,null,null,null,null,null,null,null,null,null,null,null,null,null,null,null,null,null,null,null,null,null,null,null,null,null,null,null,null,null,null,null,null,null,null,null,null,null,null,null,null,null,null,null,null,null,null,null,null,null,null,null,null,null,null,null,null,null,null,null,null,null,null,null,null,null,null,null,null,null,null,null,null,null,null,null,null,null,null,null,null,null,null,null,null,null,null,null,null,null,null,null,null,null,null,null,null,null,null,null,null,null,null,null,null,null,null,null,null,null,null,null,null,null,null,null,null,null,null,null,null,null,null,null,null,null,null,null,null,null,null,null,null,null,null,null,null,null,null,null,null,null,null,null,null,null,null,null,null,null,null,null,null,null,null,null,null,null,null,null,null,null,null,null,null,null,null,null,null,null,null,null,null,null,null,null,null,null,null,null,null,null,null,null,null,null,null,null,null,null,null,null,null,null,null,null,null,null,null,null,null,null,null,null,null,null,null,null,null,null,null,null,null,null,null,null,null,null,null,null,null,null,null,null,null,null,null,null,null,null,null,null,null,null,null,null,null,null,null,null,null,null,null,null,null,null,null,null,null,null,null,null,null,null,null,null,null,null,null,null,null,null,null,null,null,null,null,null,null,null,null,null,null,null,null,null,null,null,null,null,null,null,null,null,null,null,null,null,null,null,null,null,null,null,null,null,null,null,null,null,null,null,null,null,null,null,null,null,null,null,null,null,null,null,null,null,null,null,null,null,null,null,null,null,null,null,null,null,null,null,null,null,null,null,null,null,null,null,null,null,null,null,null,null,null,null,null,null,null,null,null,null,null,null,null,null,null,null,null,null,null,null,null,null,null,null,null,null,null,null,null,null,null,null,null,null,null,null,null,null,null,null,null,null,null,null,null,null,null,null,null,null,null,null,null,null,null,null,null,null,null,null,null,null,null,null,null,null,null,null,null,null,null,null,null,null,null,null,null,null,null,null,null,null,null,null,null,null,null,null,null,null,null,null,null,null,null,null,null,null,null,null,null,null,null,null,null,null,null,null,null,null,null,null,null,null,null,null,null,null,null,null,null,null,null,null,null,null,null,null,null,null,null,null,null,null,null,null,null,null,null,null,null,null,null,null,null,null,null,null,null,null,null,null,null,null,null,null,null,null,null,null,null,null,null,null,null,null,null,null,null,null,null,null,null,null,null,null,null,null,null,null,null,null,null,null,null,null,null,null,null,null,null,null,null,null,null,null,null,null,null,null,null,null,null,null,null,null,null,null,null,null,null,null,null,null,null,null,null,null,null,null,null,null,null,null,null,null,null,null,null,null,null,null,null,null,null,null,null,null,null,null,null,null,null,null,null,null,null,null,null,null,null,null,null,null,null,null,null,null,null,null,null,null,null,null,null,null,null,null,null,null,null,null,null,null,null,null,null,null,null,null,null,null,null,null,null,null,null,null,null,null,null,null,null,null,null,null,null,null,null,null,null,null,null,null,null,null,null,null,null,null,null,null,null,null,null,null,null,null,null,null,null,null,null,null,null,null,null,null,null,null,null,null,null,null,null,null,null,null,null,null,null,null,null,null,null,null,null,null,null,null,null,null,null,null,null,null,null,null,null,null,null,null,null,null,null,null,null,null,null,null,null,null,null,null,null,null,null,null,null,null,null,null,null,null,null,null,null,null,null,null,null,null,null,null,null,null,null,null,null,null,null,null,null,null,null,null,null,null,null,null,null,null,null,null,null,null,null,null,null,null,null,null,null,null,null,null,null,null,null,null,null,null,null,null,null,null,null,null,null,null,null,null,null,null,null,null,null,null,null,null,null,null,null,null,null,null,null,null,null,null,null,null,null,null,null,null,null,null,null,null,null,null,null,null,null,null,null,null,null,null,null,null,null,null,null,null,null,null,null,null,null,null,null,null,null,null,null,null,null,null,null,null,null,null,null,null,null,null,null,null,null,null,null,null,null,null,null,null,null,null,null,null,null,null,null,null,null,null,null,null,null,null,null,null,null,null,null,null,null,null,null,null,null,null,null,null,null,null,null,null,null,null,null,null,null,null,null,null,null,null,null,null,null,null,null,null,null,null,null,null,null,null,null,null,null,null,null,null,null,null,null,null,null,null,null,null,null,null,null,null,null,null,null,null,null,null,null,null,null,null,null,null,null,null,null,null,null,null,null,null,null,null,null,null,null,null,null,null,null,null,null,null,null,null,null,null,null,null,null,null,null,null,null,null,null,null,null,null,null,null,null,null,null,null,null,null,null,null,null,null,null,null,null,null,null,null,null,null,null,null,null,null,null,null,null,null,null,null,null,null,null,null,null,null,null,null,null,null,null,null,null,null,null,null,null,null,null,null,null,null,null,null,null,null,null,null,null,null,null,null,null,null,null,null,null,null,null,null,null,null,null,null,null,null,null,null,null,null,null,null,null,null,null,null,null,null,null,null,null,null,null,null,null,null,null,null,null,null,null,null,null,null,null,null,null,null,null,null,null,null,null,null,null,null,null,null,null,null,null,null,null,null,null,null,null,null,null,null,null,null,null,null,null,null,null,null,null,null,null,null,null,null,null,null,null,null,null,null,null,null,null,null,null,null,null,null,null,null,null,null,null,null,null,null,null,null,null,null,null,null,null,null,null,null,null,null,null,null,null,null,null,null,null,null,null,null,null,null,null,null,null,null,null,null,null,null,null,null,null,null,null,null,null,null,null,null,null,null,null,null,null,null,null,null,null,null,null,null,null,null,null,null,null,null,null,null,null,null,null,null,null,null,null,null,null,null,null,null,null,null,null,null,null,null,null,null,null,null,null,null,null,null,null,null,null,null,null,null,null,null,null,null,null,null,null,null,null,null,null,null,null,null,null,null,null,null,null,null,null,null,null,null,null,null,null,null,null,null,null,null,null,null,null,null,null,null,null,null,null,null,null,null,null,null,null,null,null,null,null,null,null,null,null,null,null,null,null,null,null,null,null,null,null,null,null,null,null,null,null,null,null,null,null,null,null,null,null,null,null,null,null,null,null,null,null,null,null,null,null,null,null,null,null,null,null,null,null,null,null,null,null,null,null,null,null,null,null,null,null,null,null,null,null,null,null,null,null,null,null,null,null,null,null,null,null,null,null,null,null,null,null,null,null,null,null,null,null,null,null,null,null,null,null,null,null,null,null,null,null,null,null,null,null,null,null,null,null,null,null,null,null,null,null,null,null,null,null,null,null,null,null,null,null,null,null,null,null,null,null,null,null,null,null,null,null,null,null,null,null,null,null,null,null,null,null,null,null,null,null,null,null,null,null,null,null,null,null,null,null,null,null,null,null,null,null,null,null,null,null,null,null,null,null,null,null,null,null,null,null,null,null,null,null,null,null,null,null,null,null,null,null,null,null,null,null,null,null,null,null,null,null,null,null,null,null,null,null,null,null,null,null,null,null,null,null,null,null,null,null,null,null,null,null,null,null,null,null,null,null,null,null,null,null,null,null,null,null,null,null,null,null,null,null,null,null,null,null,null,null,null,null,null,null,null,null,null,null,null,null,null,null,null,null,null,null,null,null,null,null,null,null,null,null,null,null,null,null,null,null,null,null,null,null,null,null,null,null,null,null,null,null,null,null,null,null,null,null,null,null,null,null,null,null,null,null,null,null,null,null,null,null,null,null,null,null,null,null,null,null,null,null,null,null,null,null,null,null,null,null,null,null,null,null,null,null,null,null,null,null,null,null,null,null,null,null,null,null,null,null,null,null,null,null,null,null,null,null,null,null,null,null,null,null,null,null,null,null,null,null,null,null,null,null,null,null,null,null,null,null,null,null,null,null,null,null,null,null,null,null,null,null,null,null,null,null,null,null,null,null,null,null,null,null,null,null,null,null,null,null,null,null,null,null,null,null,null,null,null,null,null,null,null,null,null,null,null,null,null,null,null,null,null,null,null,null,null,null,null,null,null,null,null,null,null,null,null,null,null,null,null,null,null,null,null,null,null,null,null,null,null,null,null,null,null,null,null,null,null,null,null,null,null,null,null,null,null,null,null,null,null,null,null,null,null,null,null,null,null,null,null,null,null,null,null,null,null,null,null,null,null,null,null,null,null,null,null,null,null,null,null,null,null,null,null,null,null,null,null,null,null,null,null,null,null,null,null,null,null,null,null,null,null,null,null,null,null,null,null,null,null,null,null,null,null,null,null,null,null,null,null,null,null,null,null,null,null,null,null,null,null,null,null,null,null,null,null,null,null,null,null,null,null,null,null,null,null,null,null,null,null,null,null,null,null,null,null,null,null,null,null,null,null,null,null,null,null,null,null,null,null,null,null,null,null,null,null,null,null,null,null,null,null,null,null,null,null,null,null,null,null,null,null,null,null,null,null,null,null,null,null,null,null,null,null,null,null,null,null,null,null,null,null,null,null,null,null,null,null,null,null,null,null,null,null,null,null,null,null,null,null,null,null,null,null,null,null,null,null,null,null,null,null,null,null,null,null,null,null,null,null,null,null,null,null,null,null,null,null,null,null,null,null,null,null,null,null,null,null,null,null,null,null,null,null,null,null,null,null,null,null,null,null,null,null,null,null,null,null,null,null,null,null,null,null,null,null,null,null,null,null,null,null,null,null,null,null,null,null,null,null,null,null,null,null,null,null,null,null,null,null,null,null,null,null,null,null,null,null,null,null,null,null,null,null,null,null,null,null,null,null,null,null,null,null,null,null,null,null,null,null,null,null,null,null,null,null,null,null,null,null,null,null,null,null,null,null,null,null,null,null,null,null,null,null,null,null,null,null,null,null,null,null,null,null,null,null,null,null,null,null,null,null,null,null,null,null,null,null,null,null,null,null,null,null,null,null,null,null,null,null,null,null,null,null,null,null,null,null,null,null,null,null,null,null,null,null,null,null,null,null,null,null,null,null,null,null,null,null,null,null,null,null,null,null,null,null,null,null,null,null,null,null,null,null,null,null,null,null,null,null,null,null,null,null,null,null,null,null,null,null,null,null,null,null,null,null,null,null,null,null,null,null,null,null,null,null,null,null,null,null,null,null,null,null,null,null,null,null,null,null,null,null,null,null,null,null,null,null,null,null,null,null,null,null,null,null,null,null,null,null,null,null,null,null,null,null,null,null,null,null,null,null,null,null,null,null,null,null,null,null,null,null,null,null,null,null,null,null,null,null,null,null,null,null,null,null,null,null,null,null,null,null,null,null,null,null,null,null,null,null,null,null,null,null,null,null,null,null,null,null,null,null,null,null,null,null,null,null,null,null,null,null,null,null,null,null,null,null,null,null,null,null,null,null,null,null,null,null,null,null,null,null,null,null,null,null,null,null,null,null,null,null,null,null,null,null,null,null,null,null,null,null,null,null,null,null,null,null,null,null,null,null,null,null,null,null,null,null,null,null,null,null,null,null,null,null,null,null,null,null,null,null,null,null,null,null,null,null,null,null,null,null,null,null,null,null,null,null,null,null,null,null,null,null,null,null,null,null,null,null,null,null,null,null,null,null,null,null,null,null,null,null,null,null,null,null,null,null,null,null,null,null,null,null,null,null,null,null,null,null,null,null,null,null,null,null,null,null,null,null,null,null,null,null,null,null,null,null,null,null,null,null,null,null,null,null,null,null,null,null,null,null,null,null,null,null,null,null,null,null,null,null,null,null,null,null,null,null,null,null,null,null,null,null,null,null,null,null,null,null,null,null,null,null,null,null,null,null,null,null,null,null,null,null,null,null,null,null,null,null,null,null,null,null,null,null,null,null,null,null,null,null,null,null,null,null,null,null,null,null,null,null,null,null,null,null,null,null,null,null,null,null,null,null,null,null,null,null,null,null,null,null,null,null,null,null,null,null,null,null,null,null,null,null,null,null,null,null,null,null,null,null,null,null,null,null,null,null,null,null,null,null,null,null,null,null,null,null,null,null,null,null,null,null,null,null,null,null,null,null,null,null,null,null,null,null,null,null,null,null,null,null,null,null,null,null,null,null,null,null,null,null,null,null,null,null,null,null,null,null,null,null,null,null,null,null,null,null,null,null,null,null,null,null,null,null,null,null,null,null,null,null,null,null,null,null,null,null,null,null,null,null,null,null,null,null,null,null,null,null,null,null,null,null,null,null,null,null,null,null,null,null,null,null,null,null,null,null,null,null,null,null,null,null,null,null,null,null,null,null,null,null,null,null,null,null,null,null,null,null,null,null,null,null,null,null,null,null,null,null,null,null,null,null,null,null,null,null,null,null,null,null,null,null,null,null,null,null,null,null,null,null,null,null,null,null,null,null,null,null,null,null,null,null,null,null,null,null,null,null,null,null,null,null,null,null,null,null,null,null,null,null,null,null,null,null,null,null,null,null,null,null,null,null,null,null,null,null,null,null,null,null,null,null,null,null,null,null,null,null,null,null,null,null,null,null,null,null,null,null,null,null,null,null,null,null,null,null,null,null,null,null,null,null,null,null,null,null,null,null,null,null,null,null,null,null,null,null,null,null,null,null,null,null,null,null,null,null,null,null,null,null,null,null,null,null,null,null,null,null,null,null,null,null,null,null,null,null,null,null,null,null,null,null,null,null,null,null,null,null,null,null,null,null,null,null,null,null,null,null,null,null,null,null,null,null,null,null,null,null,null,null,null,null,null,null,null,null,null,null,null,null,null,null,null,null,null,null,null,null,null,null,null,null,null,null,null,null,null,null,null,null,null,null,null,null,null,null,null,null,null,null,null,null,null,null,null,null,null,null,null,null,null,null,null,null,null,null,null,null,null,null,null,null,null,null,null,null,null,null,null,null,null,null,null,null,null,null,null,null,null,null,null,null,null,null,null,null,null,null,null,null,null,null,null,null,null,null,null,null,null,null,null,null,null,null,null,null,null,null,null,null,null,null,null,null,null,null,null,null,null,null,null,null,null,null,null,null,null,null,null,null,null,null,null,null,null,null,null,null,null,null,null,null,null,null,null,null,null,null,null,null,null,null,null,null,null,null,null,null,null,null,null,null,null,null,null,null,null,null,null,null,null,null,null,null,null,null,null,null,null,null,null,null,null,null,null,null,null,null,null,null,null,null,null,null,null,null,null,null,null,null,null,null,null,null,null,null,null,null,null,null,null,null,null,null,null,null,null,null,null,null,null,null,null,null,null,null,null,null,null,null,null,null,null,null,null,null,null,null,null,null,null,null,null,null,null,null,null,null,null,null,null,null,null,null,null,null,null,null,null,null,null,null,null,null,null,null,null,null,null,null,null,null,null,null,null,null,null,null,null,null,null,null,null,null,null,null,null,null,null,null,null,null,null,null,null,null,null,null,null,null,null,null,null,null,null,null,null,null,null,null,null,null,null,null,null,null,{"$f":"HBI68*1000","v":610.52435389173979}]
[null,"Pour 1 euro cotisé la pension au Régime Universel est inférieure de",{"$f":"IF(V73>0%,B73,IF(V73<0%,D73,\" \"))","v":"Pour 1 euro cotisé la pension au Régime Universel est inférieure de"},"Pour 1 euro cotisé, la pension obtenue serait supérieur de :",null,null,null,null,null,null,null,null,{"$f":"B73","v":"Pour 1 euro cotisé la pension au Régime Universel est inférieure de"},null,null,null,null,null,null,null,null,{"$f":"(O67-V67)/O67","v":0.23194880813005694},null,null,null,null,null,null,null,null,null,null,null,null,null,null,null,null,null,null,null,null,null,null,null,null,null,null,null,null,null,null,null,null,null,null,null,null,null,null,null,null,null,null,null,null,null,null,null,null,null,null,null,null,null,null,null,null,null,null,null,null,null,null,null,null,null,null,null,null,null,null,null,null,null,null,null,null,null,null,null,null,null,null,null,null,null,null,null,null,null,null,null,null,null,null,null,null,null,null,null,null,null,null,null,null,null,null,null,null,null,null,null,null,null,null,null,null,null,null,null,null,null,null,null,null,null,null,null,null,null,null,null,null,null,null,null,null,null,null,null,null,null,null,null,null,null,null,null,null,null,null,null,null,null,null,null,null,null,null,null,null,null,null,null,null,null,null,null,null,null,null,null,null,null,null,null,null,null,null,null,null,null,null,null,null,null,null,null,null,null,null,null,null,null,null,null,null,null,null,null,null,null,null,null,null,null,null,null,null,null,null,null,null,null,null,null,null,null,null,null,null,null,null,null,null,null,null,null,null,null,null,null,null,null,null,null,null,null,null,null,null,null,null,null,null,null,null,null,null,null,null,null,null,null,null,null,null,null,null,null,null,null,null,null,null,null,null,null,null,null,null,null,null,null,null,null,null,null,null,null,null,null,null,null,null,null,null,null,null,null,null,null,null,null,null,null,null,null,null,null,null,null,null,null,null,null,null,null,null,null,null,null,null,null,null,null,null,null,null,null,null,null,null,null,null,null,null,null,null,null,null,null,null,null,null,null,null,null,null,null,null,null,null,null,null,null,null,null,null,null,null,null,null,null,null,null,null,null,null,null,null,null,null,null,null,null,null,null,null,null,null,null,null,null,null,null,null,null,null,null,null,null,null,null,null,null,null,null,null,null,null,null,null,null,null,null,null,null,null,null,null,null,null,null,null,null,null,null,null,null,null,null,null,null,null,null,null,null,null,null,null,null,null,null,null,null,null,null,null,null,null,null,null,null,null,null,null,null,null,null,null,null,null,null,null,null,null,null,null,null,null,null,null,null,null,null,null,null,null,null,null,null,null,null,null,null,null,null,null,null,null,null,null,null,null,null,null,null,null,null,null,null,null,null,null,null,null,null,null,null,null,null,null,null,null,null,null,null,null,null,null,null,null,null,null,null,null,null,null,null,null,null,null,null,null,null,null,null,null,null,null,null,null,null,null,null,null,null,null,null,null,null,null,null,null,null,null,null,null,null,null,null,null,null,null,null,null,null,null,null,null,null,null,null,null,null,null,null,null,null,null,null,null,null,null,null,null,null,null,null,null,null,null,null,null,null,null,null,null,null,null,null,null,null,null,null,null,null,null,null,null,null,null,null,null,null,null,null,null,null,null,null,null,null,null,null,null,null,null,null,null,null,null,null,null,null,null,null,null,null,null,null,null,null,null,null,null,null,null,null,null,null,null,null,null,null,null,null,null,null,null,null,null,null,null,null,null,null,null,null,null,null,null,null,null,null,null,null,null,null,null,null,null,null,null,null,null,null,null,null,null,null,null,null,null,null,null,null,null,null,null,null,null,null,null,null,null,null,null,null,null,null,null,null,null,null,null,null,null,null,null,null,null,null,null,null,null,null,null,null,null,null,null,null,null,null,null,null,null,null,null,null,null,null,null,null,null,null,null,null,null,null,null,null,null,null,null,null,null,null,null,null,null,null,null,null,null,null,null,null,null,null,null,null,null,null,null,null,null,null,null,null,null,null,null,null,null,null,null,null,null,null,null,null,null,null,null,null,null,null,null,null,null,null,null,null,null,null,null,null,null,null,null,null,null,null,null,null,null,null,null,null,null,null,null,null,null,null,null,null,null,null,null,null,null,null,null,null,null,null,null,null,null,null,null,null,null,null,null,null,null,null,null,null,null,null,null,null,null,null,null,null,null,null,null,null,null,null,null,null,null,null,null,null,null,null,null,null,null,null,null,null,null,null,null,null,null,null,null,null,null,null,null,null,null,null,null,null,null,null,null,null,null,null,null,null,null,null,null,null,null,null,null,null,null,null,null,null,null,null,null,null,null,null,null,null,null,null,null,null,null,null,null,null,null,null,null,null,null,null,null,null,null,null,null,null,null,null,null,null,null,null,null,null,null,null,null,null,null,null,null,null,null,null,null,null,null,null,null,null,null,null,null,null,null,null,null,null,null,null,null,null,null,null,null,null,null,null,null,null,null,null,null,null,null,null,null,null,null,null,null,null,null,null,null,null,null,null,null,null,null,null,null,null,null,null,null,null,null,null,null,null,null,null,null,null,null,null,null,null,null,null,null,null,null,null,null,null,null,null,null,null,null,null,null,null,null,null,null,null,null,null,null,null,null,null,null,null,null,null,null,null,null,null,null,null,null,null,null,null,null,null,null,null,null,null,null,null,null,null,null,null,null,null,null,null,null,null,null,null,null,null,null,null,null,null,null,null,null,null,null,null,null,null,null,null,null,null,null,null,null,null,null,null,null,null,null,null,null,null,null,null,null,null,null,null,null,null,null,null,null,null,null,null,null,null,null,null,null,null,null,null,null,null,null,null,null,null,null,null,null,null,null,null,null,null,null,null,null,null,null,null,null,null,null,null,null,null,null,null,null,null,null,null,null,null,null,null,null,null,null,null,null,null,null,null,null,null,null,null,null,null,null,null,null,null,null,null,null,null,null,null,null,null,null,null,null,null,null,null,null,null,null,null,null,null,null,null,null,null,null,null,null,null,null,null,null,null,null,null,null,null,null,null,null,null,null,null,null,null,null,null,null,null,null,null,null,null,null,null,null,null,null,null,null,null,null,null,null,null,null,null,null,null,null,null,null,null,null,null,null,null,null,null,null,null,null,null,null,null,null,null,null,null,null,null,null,null,null,null,null,null,null,null,null,null,null,null,null,null,null,null,null,null,null,null,null,null,null,null,null,null,null,null,null,null,null,null,null,null,null,null,null,null,null,null,null,null,null,null,null,null,null,null,null,null,null,null,null,null,null,null,null,null,null,null,null,null,null,null,null,null,null,null,null,null,null,null,null,null,null,null,null,null,null,null,null,null,null,null,null,null,null,null,null,null,null,null,null,null,null,null,null,null,null,null,null,null,null,null,null,null,null,null,null,null,null,null,null,null,null,null,null,null,null,null,null,null,null,null,null,null,null,null,null,null,null,null,null,null,null,null,null,null,null,null,null,null,null,null,null,null,null,null,null,null,null,null,null,null,null,null,null,null,null,null,null,null,null,null,null,null,null,null,null,null,null,null,null,null,null,null,null,null,null,null,null,null,null,null,null,null,null,null,null,null,null,null,null,null,null,null,null,null,null,null,null,null,null,null,null,null,null,null,null,null,null,null,null,null,null,null,null,null,null,null,null,null,null,null,null,null,null,null,null,null,null,null,null,null,null,null,null,null,null,null,null,null,null,null,null,null,null,null,null,null,null,null,null,null,null,null,null,null,null,null,null,null,null,null,null,null,null,null,null,null,null,null,null,null,null,null,null,null,null,null,null,null,null,null,null,null,null,null,null,null,null,null,null,null,null,null,null,null,null,null,null,null,null,null,null,null,null,null,null,null,null,null,null,null,null,null,null,null,null,null,null,null,null,null,null,null,null,null,null,null,null,null,null,null,null,null,null,null,null,null,null,null,null,null,null,null,null,null,null,null,null,null,null,null,null,null,null,null,null,null,null,null,null,null,null,null,null,null,null,null,null,null,null,null,null,null,null,null,null,null,null,null,null,null,null,null,null,null,null,null,null,null,null,null,null,null,null,null,null,null,null,null,null,null,null,null,null,null,null,null,null,null,null,null,null,null,null,null,null,null,null,null,null,null,null,null,null,null,null,null,null,null,null,null,null,null,null,null,null,null,null,null,null,null,null,null,null,null,null,null,null,null,null,null,null,null,null,null,null,null,null,null,null,null,null,null,null,null,null,null,null,null,null,null,null,null,null,null,null,null,null,null,null,null,null,null,null,null,null,null,null,null,null,null,null,null,null,null,null,null,null,null,null,null,null,null,null,null,null,null,null,null,null,null,null,null,null,null,null,null,null,null,null,null,null,null,null,null,null,null,null,null,null,null,null,null,null,null,null,null,null,null,null,null,null,null,null,null,null,null,null,null,null,null,null,null,null,null,null,null,null,null,null,null,null,null,null,null,null,null,null,null,null,null,null,null,null,null,null,null,null,null,null,null,null,null,null,null,null,null,null,null,null,null,null,null,null,null,null,null,null,null,null,null,null,null,null,null,null,null,null,null,null,null,null,null,null,null,null,null,null,null,null,null,null,null,null,null,null,null,null,null,null,null,null,null,null,null,null,null,null,null,null,null,null,null,null,null,null,null,null,null,null,null,null,null,null,null,null,null,null,null,null,null,null,null,null,null,null,null,null,null,null,null,null,null,null,null,null,null,null,null,null,null,null,null,null,null,null,null,null,null,null,null,null,null,null,null,null,null,null,null,null,null,null,null,null,null,null,null,null,null,null,null,null,null,null,null,null,null,null,null,null,null,null,null,null,null,null,null,null,null,null,null,null,null,null,null,null,null,null,null,null,null,null,null,null,null,null,null,null,null,null,null,null,null,null,null,null,null,null,null,null,null,null,null,null,null,null,null,null,null,null,null,null,null,null,null,null,null,null,null,null,null,null,null,null,null,null,null,null,null,null,null,null,null,null,null,null,null,null,null,null,null,null,null,null,null,null,null,null,null,null,null,null,null,null,null,null,null,null,null,null,null,null,null,null,null,null,null,null,null,null,null,null,null,null,null,null,null,null,null,null,null,null,null,null,null,null,null,null,null,null,null,null,null,null,null,null,null,null,null,null,null,null,null,null,null,null,null,null,null,null,null,null,null,null,null,null,null,null,null,null,null,null,null,null,null,null,null,null,null,null,null,null,null,null,null,null,null,null,null,null,null,null,null,null,null,null,null,null,null,null,null,null,null,null,null,null,null,null,null,null,null,null,null,null,null,null,null,null,null,null,null,null,null,null,null,null,null,null,null,null,null,null,null,null,null,null,null,null,null,null,null,null,null,null,null,null,null,null,null,null,null,null,null,null,null,null,null,null,null,null,null,null,null,null,null,null,null,null,null,null,null,null,null,null,null,null,null,null,null,null,null,null,null,null,null,null,null,null,null,null,null,null,null,null,null,null,null,null,null,null,null,null,null,null,null,null,null,null,null,null,null,null,null,null,null,null,null,null,null,null,null,null,null,null,null,null,null,null,null,null,null,null,null,null,null,null,null,null,null,null,null,null,null,null,null,null,null,null,null,null,null,null,null,null,null,null,null,null,null,null,null,null,null,null,null,null,null,null,null,null,null,null,null,null,null,null,null,null,null,null,null,null,null,null,null,null,null,null,null,null,null,null,null,null,null,null,null,null,null,null,null,null,null,null,null,null,null,null,null,null,null,null,null,null,null,null,null,null,null,null,null,null,null,null,null,null,null,null,null,null,null,null,null,null,null,null,null,null,null,null,null,null,null,null,null,null,null,null,null,null,null,null,null,null,null,null,null,null,null,null,null,null,null,null,null,null,null,null,null,null,null,null,null,null,null,null,null,null,null,null,null,null,null,null,null,null,null,null,null,null,null,null,null,null,null,null,null,null,null,null,null,null,null,null,null,null,null,null,null,null,null,null,null,null,null,null,null,null,null,null,null,null,null,null,null,null,null,null,null,null,null,null,null,null,null,null,null,null,null,null,null,null,null,null,null,null,null,null,null,null,null,null,null,null,null,null,null,null,null,null,null,null,null,null,null,null,null,null,null,null,null,null,null,null,null,null,null,null,null,null,null,null,null,null,null,null,null,null,null,null,null,null,null,null,null,null,null,null,null,null,null,null,null,null,null,null,null,null,null,null,null,null,null,null,null,null,null,null,null,null,null,null,null,null,null,null,null,null,null,null,null,null,null,null,null,null,null,null,null,null,null,null,null,null,null,null,null,null,null,null,null,null,null,null,null,null,null,null,null,null,null,null,null,null,null,null,null,null,null,null,null,null,null,null,null,null,null,null,null,null,null,null,null,null,null,null,null,null,null,null,null,null,null,null,null,null,null,null,null,null,null,null,null,null,null,null,null,null,null,null,null,null,null,null,null,null,null,null,null,null,null,null,null,null,null,null,null,null,null,null,null,null,null,null,null,null,null,null,null,null,null,null,null,null,null,null,null,null,null,null,null,null,null,null,null,null,null,null,null,null,null,null,null,null,null,null,null,null,null,null,null,null,null,null,null,null,null,null,null,null,null,null,null,null,null,null,null,null,null,null,null,null,null,null,null,null,null,null,null,null,null,null,null,null,null,null,null,null,null,null,null,null,null,null,null,null,null,null,null,null,null,null,null,null,null,null,null,null,null,null,null,null,null,null,null,null,null,null,null,null,null,null,null,null,null,null,null,null,null,null,null,null,null,null,null,null,null,null,null,null,null,null,null,null,null,null,null,null,null,null,null,null,null,null,null,null,null,null,null,null,null,null,null,null,null,null,null,null,null,null,null,null,null,null,null,null,null,null,null,null,null,null,null,null,null,null,null,null,null,null,null,null,null,null,null,null,null,null,null,null,null,null,null,null,null,null,null,null,null,null,null,null,null,null,null,null,null,null,null,null,null,null,null,null,null,null,null,null,null,null,null,null,null,null,null,null,null,null,null,null,null,null,null,null,null,null,null,null,null,null,null,null,null,null,null,null,null,null,null,null,null,null,null,null,null,null,null,null,null,null,null,null,null,null,null,null,null,null,null,null,null,null,null,null,null,null,null,null,null,null,null,null,null,null,null,null,null,null,null,null,null,null,null,null,null,null,null,null,null,null,null,null,null,null,null,null,null,null,null,null,null,null,null,null,null,null,null,null,null,null,null,null,null,null,null,null,null,null,null,null,null,null,null,null,null,null,null,null,null,null,null,null,null,null,null,null,null,null,null,null,null,null,null,null,null,null,null,null,null,null,null,null,null,null,null,null,null,null,null,null,null,null,null,null,null,null,null,null,null,null,null,null,null,null,null,null,null,null,null,null,null,null,null,null,null,null,null,null,null,null,null,null,null,null,null,null,null,null,null,null,null,null,null,null,null,null,null,null,null,null,null,null,null,null,null,null,null,null,null,null,null,null,null,null,null,null,null,null,null,null,null,null,null,null,null,null,null,null,null,null,null,null,null,null,null,null,null,null,null,null,null,null,null,null,null,null,null,null,null,null,null,null,null,null,null,null,null,null,null,null,null,null,null,null,null,null,null,null,null,null,null,null,null,null,null,null,null,null,null,null,null,null,null,null,null,null,null,null,null,null,null,null,null,null,null,null,null,null,null,null,null,null,null,null,null,null,null,null,null,null,null,null,null,null,null,null,null,null,null,null,null,null,null,null,null,null,null,null,null,null,null,null,null,null,null,null,null,null,null,null,null,null,null,null,null,null,null,null,null,null,null,null,null,null,null,null,null,null,null,null,null,null,null,null,null,null,null,null,null,null,null,null,null,null,null,null,null,null,null,null,null,null,null,null,null,null,null,null,null,null,null,null,null,null,null,null,null,null,null,null,null,null,null,null,null,null,null,null,null,null,null,null,null,null,null,null,null,null,null,null,null,null,null,null,null,null,null,null,null,null,null,null,null,null,null,null,null,null,null,null,null,null,null,null,null,null,null,null,null,null,null,null,null,null,null,null,null,null,null,null,null,null,null,null,null,null,null,null,null,null,null,null,null,null,null,null,null,null,null,null,null,null,null,null,null,null,null,null,null,null,null,null,null,null,null,null,null,null,null,null,null,null,null,null,null,null,null,null,null,null,null,null,null,null,null,null,null,null,null,null,null,null,null,null,null,null,null,null,null,null,null,null,null,null,null,null,null,null,null,null,null,null,null,null,null,null,null,null,null,null,null,null,null,null,null,null,null,null,null,null,null,null,null,null,null,null,null,null,null,null,null,null,null,null,null,null,null,null,null,null,null,null,null,null,null,null,null,null,null,null,null,null,null,null,null,null,null,null,null,null,null,null,null,null,null,null,null,null,null,null,null,null,null,null,null,null,null,null,null,null,null,null,null,null,null,null,null,null,null,null,null,null,null,null,null,null,null,null,null,null,null,null,null,null,null,null,null,null,null,null,null,null,null,null,null,null,null,null,null,null,null,null,null,null,null,null,null,null,null,null,null,null,null,null,null,null,null,null,null,null,null,null,null,null,null,null,null,null,null,null,null,null,null,null,null,null,null,null,null,null,null,null,null,null,null,null,null,null,null,null,null,null,null,null,null,null,null,null,null,null,null,null,null,null,null,null,null,null,null,null,null,null,null,null,null,null,null,null,null,null,null,null,null,null,null,null,null,null,null,null,null,null,null,null,null,null,null,null,null,null,null,null,null,null,null,null,null,null,null,null,null,null,null,null,null,null,null,null,null,null,null,null,null,null,null,null,null,null,null,null,null,null,null,null,null,null,null,null,null,null,null,null,null,null,null,null,null,null,null,null,null,null,null,null,null,null,null,null,null,null,null,null,null,null,null,null,null,null,null,null,null,null,null,null,null,null,null,null,null,null,null,null,null,null,null,null,null,null,null,null,null,null,null,null,null,null,null,null,null,null,null,null,null,null,null,null,null,null,null,null,null,null,null,null,null,null,null,null,null,null,null,null,null,null,null,null,null,null,null,null,null,null,null,null,null,null,null,null,null,null,null,null,null,null,null,null,null,null,null,null,null,null,null,null,null,null,null,null,null,null,null,null,null,null,null,null,null,null,null,null,null,null,null,null,null,null,null,null,null,null,null,null,null,null,null,null,null,null,null,null,null,null,null,null,null,null,null,null,null,null,null,null,null,null,null,null,null,null,null,null,null,null,null,null,null,null,null,null,null,null,null,null,null,null,null,null,null,null,null,null,null,null,null,null,null,null,null,null,null,null,null,null,null,null,null,null,null,null,null,null,null,null,null,null,null,null,null,null,null,null,null,null,null,null,null,null,null,null,null,null,null,null,null,null,null,null,null,null,null,null,null,null,null,null,null,null,null,null,null,null,null,null,null,null,null,null,null,null,null,null,null,null,null,null,null,null,null,null,null,null,null,null,null,null,null,null,null,null,null,null,null,null,null,null,null,null,null,null,null,null,null,null,null,null,null,null,null,null,null,null,null,null,null,null,null,null,null,null,null,null,null,null,null,null,null,null,null,null,null,null,null,null,null,null,null,null,null,null,null,null,null,null,null,null,null,null,null,null,null,null,null,null,null,null,null,null,null,null,null,null,null,null,null,null,null,null,null,null,null,null,null,null,null,null,null,null,null,null,null,null,null,null,null,null,null,null,null,null,null,null,null,null,null,null,null,null,null,null,null,null,null,null,null,null,null,null,null,null,null,null,null,null,null,null,null,null,null,null,null,null,null,null,null,null,null,null,null,null,null,null,null,null,null,null,null,null,null,null,null,null,null,null,null,null,null,null,null,null,null,null,null,null,null,null,null,null,null,null,null,null,null,null,null,null,null,null,null,null,null,null,null,null,null,null,null,null,null,null,null,null,null,null,null,null,null,null,null,null,null,null,null,null,null,null,null,null,null,null,null,null,null,null,null,null,null,null,null,null,null,null,null,null,null,null,null,null,null,null,null,null,null,null,null,null,null,null,null,null,null,null,null,null,null,null,null,null,null,null,null,null,null,null,null,null,null,null,null,null,null,null,null,null,null,null,null,null,null,null,null,null,null,null,null,null,null,null,null,null,null,null,null,null,null,null,null,null,null,null,null,null,null,null,null,null,null,null,null,null,null,null,null,null,null,null,null,null,null,null,null,null,null,null,null,null,null,null,null,null,null,null,null,null,null,null,null,null,null,null,null,null,null,null,null,null,null,null,null,null,null,null,null,null,null,null,null,null,null,null,null,null,null,null,null,null,null,null,null,null,null,null,null,null,null,null,null,null,null,null,null,null,null,null,null,null,null,null,null,null,null,null,null,null,null,null,null,null,null,null,null,null,null,null,null,null,null,null,null,null,null,null,null,null,null,null,null,null,null,null,null,null,null,null,null,null,null,null,null,null,null,null,null,null,null,null,null,null,null,null,null,null,null,null,null,null,null,null,null,null,null,null,null,null,null,null,null,null,null,null,null,null,null,null,null,null,null,null,null,null,null,null,null,null,null,null,null,null,null,null,null,null,null,null,null,null,null,null,null,null,null,null,null,null,null,null,null,null,null,null,null,null,null,null,null,null,null,null,null,null,null,null,null,null,null,null,null,null,null,null,null,null,null,null,null,null,null,null,null,null,null,null,null,null,null,null,null,null,null,null,null,null,null,null,null,null,null,null,null,null,null,null,null,null,null,null,null,null,null,null,null,null,null,null,null,null,null,null,null,null,null,null,null,null,null,null,null,null,null,null,null,null,null,null,null,null,null,null,null,null,null,null,null,null,null,null,null,null,null,null,null,null,null,null,null,null,null,null,null,null,null,null,null,null,null,null,null,null,null,null,null,null,null,null,null,null,null,null,null,null,null,null,null,null,null,null,null,null,null,null,null,null,null,null,null,null,null,null,null,null,null,null,null,null,null,null,null,null,null,null,null,null,null,null,null,null,null,null,null,null,null,null,null,null,null,null,null,null,null,null,null,null,null,null,null,null,null,null,null,null,null,null,null,null,null,null,null,null,null,null,null,null,null,null,null,null,null,null,null,null,null,null,null,null,null,null,null,null,null,null,null,null,null,null,null,null,null,null,null,null,null,null,null,null,null,null,null,null,null,null,null,null,null,null,null,null,null,null,null,null,null,null,null,null,null,null,null,null,null,null,null,null,null,null,null,null,null,null,null,null,null,null,null,null,null,null,null,null,null,null,null,null,null,null,null,null,null,null,null,null,null,null,null,null,null,null,null,null,null,null,null,null,null,null,null,null,null,null,null,null,null,null,null,null,null,null,null,null,null,null,null,null,null,null,null,null,null,null,null,null,null,null,null,null,null,null,null,null,null,null,null,null,null,null,null,null,null,null,null,null,null,null,null,null,null,null,null,null,null,null,null,null,null,null,null,null,null,null,null,null,null,null,null,null,null,null,null,null,null,null,null,null,null,null,null,null,null,null,null,null,null,null,null,null,null,null,null,null,null,null,null,null,null,null,null,null,null,null,null,null,null,null,null,null,null,null,null,null,null,null,null,null,null,null,null,null,null,null,null,null,null,null,null,null,null,null,null,null,null,null,null,null,null,null,null,null,null,null,null,null,null,null,null,null,null,null,null,null,null,null,null,null,null,null,null,null,null,null,null,null,null,null,null,null,null,null,null,null,null,null,null,null,null,null,null,null,null,null,null,null,null,null,null,null,null,null,null,null,null,null,null,null,null,null,null,null,null,null,null,null,null,null,null,null,null,null,null,null,null,null,null,null,null,null,null,null,null,null,null,null,null,null,null,null,null,null,null,null,null,null,null,null,null,null,null,null,null,null,null,null,null,null,null,null,null,null,null,null,null,null,null,null,null,null,null,null,null,null,null,null,null,null,null,null,null,null,null,null,null,null,null,null,null,null,null,null,null,null,null,null,null,null,null,null,null,null,null,null,null,null,null,null,null,null,null,null,null,null,null,null,null,null,null,null,null,null,null,null,null,null,null,null,null,null,null,null,null,null,null,null,null,null,null,null,null,null,null,null,null,null,null,null,null,null,null,null,null,null,null,null,null,null,null,null,null,null,null,null,null,null,null,null,null,null,null,null,null,null,null,null,null,null,null,null,null,null,null,null,null,null,null,null,null,null,null,null,null,null,null,null,null,null,null,null,null,null,null,null,null,null,null,null,null,null,null,null,null,null,null,null,null,null,null,null,null,null,null,null,null,null,null,null,null,null,null,null,null,null,null,null,null,null,null,null,null,null,null,null,null,null,null,null,null,null,null,null,null,null,null,null,null,null,null,null,null,null,null,null,null,null,null,null,null,null,null,null,null,null,null,null,null,null,null,null,null,null,null,null,null,null,null,null,null,null,null,null,null,null,null,null,null,null,null,null,null,null,null,null,null,null,null,null,null,null,null,null,null,null,null,null,null,null,null,null,null,null,null,null,null,null,null,null,null,null,null,null,null,null,null,null,null,null,null,null,null,null,null,null,null,null,null,null,null,null,null,null,null,null,null,null,null,null,null,null,null,null,null,null,null,null,null,null,null,null,null,null,null,null,null,null,null,null,null,null,null,null,null,null,null,null,null,null,null,null,null,null,null,null,null,null,null,null,null,null,null,null,null,null,null,null,null,null,null,null,null,null,null,null,null,null,null,null,null,null,null,null,null,null,null,null,null,null,null,null,null,null,null,null,null,null,null,null,null,null,null,null,null,null,null,null,null,null,null,null,null,null,null,null,null,null,null,{"$f":"HBI72*20.386","v":12446.149478437006}]
[null,null,null,null,null,null,null,null,null,null,null,null,"Le taux de remplacement par rapport au revenu d'activité baissera de  :",null,null,null,null,null,null,null,null,{"$f":"O68-V68","v":6.5074829245396315E-2}]
[]
[]
[null,"compensation démographique cnavpl",902608841,null,null,null,null,null,null,null,null,null,"(*) ( Le système universel tend à supprimer les régimes complémtentaires (Agirc-ARCO pour les salariés, caisses complémentaires des Professions Libérales…) Ainsi la comparaison entre les situations actuelles et les situations envisagées par la réforme doivent nécessairement prendre en  compte les régimes actuels de  base et complémentaire."]
[null,"nombre de cotisants",931254,null,null,null,null,null,null,null,null,null,"(**) Le projet de régime universel prévoit une pension minimum pour les carrières complètes de 85% du SMIC, ainsi toutes les pension inférieures à ce montant sernt réajustées automtiquement à la condition que la carrière ait été complète. "]
[null,"PAR COTISANT",{"$f":"C77/C78","v":969.24022984062356},null,null,null,null,null,null,null,null,null,"Part des cotisations de base réservée à la solidarité Nationale, payée par la CNAVPL (moyenne annuelle par cotisant) :",null,null,null,null,null,null,null,null,{"$f":"C79","v":969.24022984062356}]
[]
[]
[]
[]
[]
[]
[]
[]
[]
[]
[]
[null,"SECTEUR",2,"COMPLEMENTAIRE ET ASV"]
[null,"RÉGIME COMPLÉMENTAIRE",null,"Cotisation maximale : 13 900 €.",null,{"$f":"(B16*3.5)*F93","v":14109.648000000001},14183,"PLAFOND",{"$f":"14183*10","v":141830}]
[null,"Revenus nets d'activité indépendante 2017 dans la limite de 141 834 € (3,5 PASS)",null,null,null,9.8000000000000004E-2,"Pour 2019 : 1 point par tranche de revenu de 14 183 €, 10 points maximum","1 POINT","10 POINTS MAXI"]
[null,"cotisation :",{"$f":"+IF(E16<=I92,E16*F93,IF(E16>I92,F92,\" \"))","v":7056},"Points obtenus",null,{"$f":"IF(E16<=I92,E16/G92,IF(E16>I92,10,\" \"))","v":5.0765000352534724},"Calcul de la pension pour une année",69,{"$f":"H94*F94","v":350.27850243248957}]
[null,"RÉGIME ASV","COTISATIONS ",null,null,"Calcul des points ASV ( forfaitaire 27)",null,27]
[null,null,"Part forfaitaire :","Part ajustement :","cotisation maxi  ASV","Pour 2019 : 27 points + 1 point par tranche de 7 828,70 € de revenus, 9 points maximum",null,9]
[null,"SECTEUR 1",1691,1.2E-2,{"$f":"C16*D97","v":2468.16},"Part de revenu pour acquerir des points supplémentaires",null,7828.7,null,null,null,null,null,null,null,null,null,null,null,null,null,null,null,null,null,null,null,null,null,null,null,null,null,null,null,null,null,null,null,null,null,null,null,null,null,null,null,null,null,null,null,null,null,null,null,null,null,null,null,null,8]
[null,"- secteur 2",5073,3.5999999999999997E-2,{"$f":"C16*D98","v":7404.48},"cotis maxi ASV Sect 1","PLAFOND revenus supplémentaires",{"$f":"H97*9","v":70458.3},null,null,null,null,null,null,null,null,null,null,null,null,null,null,null,null,null,null,null,null,null,null,null,null,null,null,null,null,null,null,null,null,null,null,null,null,null,null,null,null,null,{"$f":"BH82","v":0},null,null,null,null,null,null,null,null,null,null,10]
[null,{"$f":"C96","v":"Part forfaitaire :"},{"$f":"IF(C91=1,C97,IF(C91=2,C98,\" \"))","v":5073},"POINTS forfaitaires",{"$f":"H95","v":27},{"$f":"C97+E97","v":4159.16},"Valeur du point ASV",11.31,null,null,null,null,null,null,null,null,null,null,null,null,null,null,null,null,null,null,null,null,null,null,null,null,null,null,null,null,null,null,null,null,null,null,null,null,null,null,null,null,null,null,null,null,null,null,null,null,null,null,null,null,168]
[null,"Part ajustement :",{"$f":"IF(AND(E16<=C16,C91=1),E16*D97,IF(AND(E16<=C16,C91=2),E16*D98,IF(AND(E16>C16,C91=2),E98,IF(AND(E16>C16,C91=1),E97,\" \"))))","v":2592},"POINTS ajustement",{"$f":"IF(E16<=H98,E16/H97,IF(E16>H98,9,\" \"))","v":9},"cotis maxi ASV Sect 2","Calcul de la pension pour  1 Année",{"$f":"+H99*E101","v":407.16},null,null,null,null,null,null,null,null,null,null,null,null,null,null,null,null,null,null,null,null,null,null,null,null,null,null,null,null,null,null,null,null,null,null,null,null,null,null,null,null,"Synthèse des comparaisons entre régime C.A.V.E.C et le Régime Universel pour un même revenu de",null,null,null,null,null,null,null,null,null,null,null,160]
[null,"Cotisation totale ",{"$f":"+C99+C100","v":7665},"POINTS total acquis",{"$f":"SUM(E99:E100)","v":36},{"$f":"C98+E98","v":12477.48},null,null,null,null,null,null,null,null,null,null,null,null,null,null,null,null,null,null,null,null,null,null,null,null,null,null,null,null,null,null,null,null,null,null,null,null,null,null,null,null,null,null,null,null,null,null,null,null,null,null,null,null,null,null,161]
[null,null,null,null,null,null,null,null,null,null,null,null,null,null,null,null,null,null,null,null,null,null,null,null,null,null,null,null,null,null,null,null,null,null,null,null,null,null,null,null,null,null,null,null,null,null,null,null,null,null,null,null,null,null,null,null,null,null,null,null,162]
[null,null,null,null,null,null,null,null,null,null,null,null,null,null,null,null,null,null,null,null,null,null,null,null,null,null,null,null,null,null,null,null,null,null,null,null,null,null,null,null,null,null,null,null,null,null,null,null,null,null,null,null,null,null,null,null,null,null,null,null,163]
[null,null,null,null,null,null,null,null,null,null,null,null,null,null,null,null,null,null,null,null,null,null,null,null,null,null,null,null,null,null,null,null,null,null,null,null,null,null,null,null,null,null,null,null,null,null,null,null,null,null,null,null,null,null,null,null,null,null,null,null,164]
[null,null,null,null,null,null,null,null,null,null,null,null,null,null,null,null,null,null,null,null,null,null,null,null,null,null,null,null,null,null,null,null,null,null,null,null,null,null,null,null,null,null,null,null,null,null,null,null,null,null,null,null,null,null,null,null,null,null,null,null,165]
[null,null,null,null,null,null,null,null,null,null,null,null,null,null,null,null,null,null,null,null,null,null,null,null,null,null,null,null,null,null,null,null,null,null,null,null,null,null,null,null,null,null,null,null,null,null,null,null,null,null,null,null,null,null,null,null,null,null,null,null,166]
[null,null,null,null,null,null,null,null,null,null,null,null,null,null,null,null,null,null,null,null,null,null,null,null,null,null,null,null,null,null,null,null,null,null,null,null,null,null,null,null,null,null,null,null,null,null,null,null,null,null,null,null,null,null,null,null,null,null,null,null,167]
[null,null,null,null,null,null,null,null,null,null,null,null,null,null,null,null,null,null,null,null,null,null,null,null,null,null,null,null,null,null,null,null,null,null,null,null,null,null,null,null,null,null,null,null,null,null,null,null,null,null,null,null,null,null,null,null,null,null,null,null,168]
[null,null,null,null,null,null,null,null,null,null,null,null,null,null,null,null,null,null,null,null,null,null,null,null,null,null,null,null,null,null,null,null,null,null,null,null,null,null,null,null,null,null,null,null,null,null,null,null,null,null,null,null,null,null,null,null,null,null,null,null,169]
[null,null,null,null,null,null,null,null,null,null,null,null,null,null,null,null,null,null,null,null,null,null,null,null,null,null,null,null,null,null,null,null,null,null,null,null,null,null,null,null,null,null,null,null,null,null,null,null,null,null,null,null,null,null,null,null,null,null,null,null,170]
[null,null,null,null,null,null,null,null,null,null,null,null,null,null,null,null,null,null,null,null,null,null,null,null,null,null,null,null,null,null,null,null,null,null,null,null,null,null,null,null,null,null,null,null,null,null,null,null,null,null,null,null,null,null,null,null,null,null,null,null,171]
[null,null,null,null,null,null,null,null,null,null,null,null,null,null,null,null,null,null,null,null,null,null,null,null,null,null,null,null,null,null,null,null,null,null,null,null,null,null,null,null,null,null,null,null,null,null,null,null,null,null,null,null,null,null,null,null,null,null,null,null,172]
[]
[]
[]
[]
[]
[]
[]
[]
[]
[]
[]
[]
[]
[]
[]
[]
[]
[null,null,null,null,null,null,null,null,null,null,null,null,null,null,null,null,null,null,null,null,null,null,null,null,null,null,null,null,null,null,null,null,null,null,null,null,null,null,null,null,null,null,null,null,null,null,null,20]
[]
[]
[]
[]
[]
[]
[null,null,null,null,null,null,null,null,null,null,null,null,null,null,null,null,null,null,null,null,null,null,null,null,null,null,null,null,null,null,null,null,null,null,null,null,null,null,null,null,null,null,null,null,null,null,"zone de calcul, ne pas modifier"]
[null,null,null,null,null,null,null,null,null,null,null,null,null,null,null,null,null,null,null,null,null,null,null,null,null,null,null,null,null,null,null,null,null,null,null,null,null,null,null,null,null,null,null,null,null,null,"PENSION u regime universel calcul",{"$f":"BT55*BT34","v":0},12240]
[null,null,null,null,null,null,null,null,null,null,null,null,null,null,null,null,null,null,null,null,null,null,null,null,null,null,null,null,null,null,null,null,null,null,null,null,null,null,null,null,null,null,null,null,null,null,null,{"$f":"IF(AV138<=AW138,AW138,IF(AV138>AW138,AV138,\" \"))","v":12240}]
[]
[]
[]
[]
[]
[null,null,null,null,null,null,null,null,null,null,null,null,null,null,null,null,null,null,null,null,null,null,null,null,null,null,null,null,null,null,null,null,null,null,null,null,null,null,null,null,null,null,null,null,null,null,{"$f":"+#REF!","v":{"$error":"#REF!"}}]
[null,null,null,null,null,null,null,null,null,null,null,null,null,null,null,null,null,null,null,null,null,null,null,null,null,null,null,null,null,null,null,null,null,null,null,null,null,null,null,null,null,null,null,null,null,null,{"$f":"#REF!","v":{"$error":"#REF!"}}]
[]
[]
[]
[]
[]
[]
[]
[]
[]
[]
[]
[]
[]
[]
[]
[]
[]
[]
[]
[]
[]
[]
[]
[]
[]
[]
[]
[]
[]
[]
[]
[]
[]
[null,null,null,null,null,null,null,null,null,null,null,null,null,null,null,null,null,null,null,null,null,null,null,null,null,null,null,null,null,null,null,null,null,null,null,null,null,null,null,null,null,null,null,null,null,null,"données de controle"]
[]
[null,null,null,null,null,null,null,null,null,null,null,null,null,null,null,null,null,null,null,null,null,null,null,null,null,null,null,null,null,null,null,null,null,null,null,null,null,null,null,null,null,null,null,null,null,null,null,"A","B","C","D"]
[null,null,null,null,null,null,null,null,null,null,null,null,null,null,null,null,null,null,null,null,null,null,null,null,null,null,null,null,null,null,null,null,null,null,null,null,null,null,null,null,null,null,null,null,null,null,123000,41674,83348,125022,166696]
[null,null,null,null,null,null,null,null,null,null,null,null,null,null,null,null,null,null,null,null,null,null,null,null,null,null,null,null,null,null,null,null,null,null,null,null,null,null,null,null,null,null,null,null,null,null,{"$f":"+AU183","v":123000},"de 1 € à 41.674 €","41.675 à 83.348 €","83.349 à 125.022 €","125.023 à 166.696 €"]
[null,null,null,null,null,null,null,null,null,null,null,null,null,null,null,null,null,null,null,null,null,null,null,null,null,null,null,null,null,null,null,null,null,null,null,null,null,null,null,null,null,null,null,null,null,null,"C1",3.7999999999999999E-2,7.5999999999999998E-2,8.6999999999999994E-2,9.8000000000000004E-2]
[null,null,null,null,null,null,null,null,null,null,null,null,null,null,null,null,null,null,null,null,null,null,null,null,null,null,null,null,null,null,null,null,null,null,null,null,null,null,null,null,null,null,null,null,null,null,"C2",4.4999999999999998E-2,8.8999999999999996E-2,0.10349999999999999,0.11799999999999999]
[null,null,null,null,null,null,null,null,null,null,null,null,null,null,null,null,null,null,null,null,null,null,null,null,null,null,null,null,null,null,null,null,null,null,null,null,null,null,null,null,null,null,null,null,null,null,"C3",5.2499999999999998E-2,0.10249999999999999,0.12,0.13800000000000001]
[null,null,null,null,null,null,null,null,null,null,null,null,null,null,null,null,null,null,null,null,null,null,null,null,null,null,null,null,null,null,null,null,null,null,null,null,null,null,null,null,null,null,null,null,null,null,"C4",0.06,0.11600000000000001,0.13700000000000001,0.158]
[]
[]
[null,null,null,null,null,null,null,null,null,null,null,null,null,null,null,null,null,null,null,null,null,null,null,null,null,null,null,null,null,null,null,null,null,null,null,null,null,null,null,null,null,null,null,null,null,null,"·      Né à partir de 1973 : 172 trimestres"]
[null,null,null,null,null,null,null,null,null,null,null,null,null,null,null,null,null,null,null,null,null,null,null,null,null,null,null,null,null,null,null,null,null,null,null,null,null,null,null,null,null,null,null,null,null,null,"·      Né à partir de 1970 : 171 trimestres"]
[null,null,null,null,null,null,null,null,null,null,null,null,null,null,null,null,null,null,null,null,null,null,null,null,null,null,null,null,null,null,null,null,null,null,null,null,null,null,null,null,null,null,null,null,null,null,"·      Né à partir de 1967 : 170 trimestres"]
[null,null,null,null,null,null,null,null,null,null,null,null,null,null,null,null,null,null,null,null,null,null,null,null,null,null,null,null,null,null,null,null,null,null,null,null,null,null,null,null,null,null,null,null,null,null,"·      Né à partir de 1964 : 169 trimestres"]
[null,null,null,null,null,null,null,null,null,null,null,null,null,null,null,null,null,null,null,null,null,null,null,null,null,null,null,null,null,null,null,null,null,null,null,null,null,null,null,null,null,null,null,null,null,null,"·      Né à partir de 1961 : 168 trimestres"]
[null,null,null,null,null,null,null,null,null,null,null,null,null,null,null,null,null,null,null,null,null,null,null,null,null,null,null,null,null,null,null,null,null,null,null,null,null,null,null,null,null,null,null,null,null,null,"·      Né à partir de 1958 : 167 trimestres"]
[null,null,null,null,null,null,null,null,null,null,null,null,null,null,null,null,null,null,null,null,null,null,null,null,null,null,null,null,null,null,null,null,null,null,null,null,null,null,null,null,null,null,null,null,null,null,"·      Né en 1956 : 166 trimestres"]
[null,null,null,null,null,null,null,null,null,null,null,null,null,null,null,null,null,null,null,null,null,null,null,null,null,null,null,null,null,null,null,null,null,null,null,null,null,null,null,null,null,null,null,null,null,null,"·      Né en 1955 : 166 trimestres"]
[null,null,null,null,null,null,null,null,null,null,null,null,null,null,null,null,null,null,null,null,null,null,null,null,null,null,null,null,null,null,null,null,null,null,null,null,null,null,null,null,null,null,null,null,null,null,"·      Né en 1954 : 165 trimestres"]
[null,null,null,null,null,null,null,null,null,null,null,null,null,null,null,null,null,null,null,null,null,null,null,null,null,null,null,null,null,null,null,null,null,null,null,null,null,null,null,null,null,null,null,null,null,null,"·      Né en 1953 : 165 trimestres"]
[null,null,null,null,null,null,null,null,null,null,null,null,null,null,null,null,null,null,null,null,null,null,null,null,null,null,null,null,null,null,null,null,null,null,null,null,null,null,null,null,null,null,null,null,null,null,"·      Né en 1952 : 164 trimestres"]
[null,null,null,null,null,null,null,null,null,null,null,null,null,null,null,null,null,null,null,null,null,null,null,null,null,null,null,null,null,null,null,null,null,null,null,null,null,null,null,null,null,null,null,null,null,null,"·      Né en 1951 : 163 trimestres"]
[null,null,null,null,null,null,null,null,null,null,null,null,null,null,null,null,null,null,null,null,null,null,null,null,null,null,null,null,null,null,null,null,null,null,null,null,null,null,null,null,null,null,null,null,null,null,"·      Né en 1950 : 162 trimestres"]
[null,null,null,null,null,null,null,null,null,null,null,null,null,null,null,null,null,null,null,null,null,null,null,null,null,null,null,null,null,null,null,null,null,null,null,null,null,null,null,null,null,null,null,null,null,null,"·      Né en 1949 : 161 trimestres"]